Workbook

Sheet TABLERO
F9: Variables que impactan en los ingresos

Sheet Variables comparadas
C5: IPC | D5: IPC SALUD | E5: DÓLAR | F5: SALARIOS | G5: Cuotas EMPP | H5: ARANCELES
A6: VARIACIÓN ÚLTIMO MES* | C6: =+IPC!C3 -> 0.1324067605 | D6: =+'IPC Salud'!C3 -> 0.1357469804 | E6: =+'Dolar oficial'!C4 -> 0.01901772565 | F6: =+Salarios!C3 -> 0.1090500929 | G6: =+'Cuotas EMPP'!C3 -> 0.2809090909 | H6: =+Aranceles!C3 -> 0.2275363636
A7: VARIACIÓN ACUMULADA 2023 | C7: =+IPC!B14 -> 2.114049004 | D7: =+'IPC Salud'!B14 -> 2.277279497 | E7: =+'Dolar oficial'!B15 -> 2.699620941 | F7: =+Salarios!B14 -> 1.58567558 | G7: =+'Cuotas EMPP'!B17 -> 1.357599196 | H7: =+Aranceles!B17 -> 1.133844233
A8: VARIACIÓN ACUMULADA 2024* | C8: =+IPC!B15 -> 0.3658406261 | D8: =+'IPC Salud'!B15 -> 0.3680541754 | E8: =+'tc prom mensual'!B99/'tc prom mensual'!B96-1 -> 0.2871529888 | F8: =+Salarios!B15 -> 0.2999999926 | G8: =+'Aumentos prepagas'!K72 -> 0.782978876 | H8: =+'Aranceles datos'!D41/'Aranceles datos'!D39-1 -> 0.6694494545
A9: *Feb 2024
A13: Evolución 2019-2024 (a febrero)

Sheet IPC
A3: VARIACIÓN ÚLTIMO MES | C3: =+'IPC Datos'!D91 -> 0.1324067605
A4: *Febrero 2024
A6: Variación Anual
A8: 2017 | B8: =+'IPC Datos'!B17/'IPC Datos'!B5-1 -> 0.248
A9: 2018 | B9: =+'IPC Datos'!B29/'IPC Datos'!B17-1 -> 0.4767628205
A10: 2019 | B10: =+'IPC Datos'!B41/'IPC Datos'!B29-1 -> 0.537710255
A11: 2020 | B11: =+'IPC Datos'!B53/'IPC Datos'!B41-1 -> 0.3616796048
A12: 2021 | B12: =+'IPC Datos'!B65/'IPC Datos'!B53-1 -> 0.5094584089
A13: 2022 | B13: =+'IPC Datos'!B77/'IPC Datos'!B65-1 -> 0.9478111588
A14: 2023 | B14: =+'IPC Datos'!B89/'IPC Datos'!B77-1 -> 2.114049004
A15: 2024* | B15: =+'IPC Datos'!F91 -> 0.3658406261
A17: *A febrero

Sheet IPC Salud
A3: VARIACIÓN ÚLTIMO MES | C3: =+'IPC Datos'!E91 -> 0.1357469804
A4: *Febrero 2024
A6: Variación Anual
A8: 2017 | B8: =+'IPC Datos'!C17/'IPC Datos'!C5-1 -> 0.278
A9: 2018 | B9: =+'IPC Datos'!C29/'IPC Datos'!C17-1 -> 0.5015649452
A10: 2019 | B10: =+'IPC Datos'!C41/'IPC Datos'!C29-1 -> 0.721208963
A11: 2020 | B11: =+'IPC Datos'!C53/'IPC Datos'!C41-1 -> 0.2867090524
A12: 2021 | B12: =+'IPC Datos'!C65/'IPC Datos'!C53-1 -> 0.5178823529
A13: 2022 | B13: =+'IPC Datos'!C77/'IPC Datos'!C65-1 -> 0.9090063556
A14: 2023 | B14: =+'IPC Datos'!C89/'IPC Datos'!C77-1 -> 2.277279497
A15: 2024* | B15: =+'IPC Datos'!G91 -> 0.3680541754
A17: *A febrero

Sheet Salarios
A3: VARIACIÓN ÚLTIMO MES* | C3: =+'Salarios datos'!I39 -> 0.1090500929
A4: *Febrero 2024
A6: VARIACIÓN MARZO 2024 | C6: =+'Salarios datos'!I40 -> 0.1200000018
A8: Variación Anual
A10: 2019 | B10: =+'Salarios datos'!M3 -> 0.4689880861
A11: 2020 | B11: =+'Salarios datos'!M4 -> 0.1831273702
A12: 2021 | B12: =+'Salarios datos'!M5 -> 0.905396631
A13: 2022 | B13: =+'Salarios datos'!M6 -> 0.9800034839
A14: 2023 | B14: =+'Salarios datos'!M7 -> 1.58567558
A15: 2024* | B15: =+'Salarios datos'!J39/'Salarios datos'!J37-1 -> 0.2999999926
A16: * a febrero

Sheet Dolar oficial
A4: VARIACIÓN ÚLTIMO MES | C4: =+'tc prom mensual'!B99/'tc prom mensual'!B98-1 -> 0.01901772565
A5: *Feb 2024
A7: Variación Anual
A9: 2017 | B9: =+'tc prom mensual'!B18/'tc prom mensual'!B5-1 -> 0.1190980257
A10: 2018 | B10: =+'tc prom mensual'!B31/'tc prom mensual'!B18-1 -> 1.15847876
A11: 2019 | B11: =+'tc prom mensual'!B44/'tc prom mensual'!B31-1 -> 0.6196719652
A12: 2020 | B12: =+'tc prom mensual'!B57/'tc prom mensual'!B44-1 -> 0.3987341772
A13: 2021 | B13: =+'tc prom mensual'!B70/'tc prom mensual'!B57-1 -> 0.2188034188
A14: 2022 | B14: =+'tc prom mensual'!B83/'tc prom mensual'!B70-1 -> 0.6763674614
A15: 2023 | B15: =+'tc prom mensual'!B96/'tc prom mensual'!B83-1 -> 2.699620941
A16: 2024* | B16: =+'tc prom mensual'!B99/'tc prom mensual'!B96-1 -> 0.2871529888
A17: *A febrero

Sheet Costos
A4: VARIACIÓN PROMEDIO ÚLTIMO MES | C4: =+'Costos DxI'!G13 -> 0.1028959806
A5: *Feb 2024
A7: Variación ultimo mes por prestacion
A9: =+'Costos DxI'!A5 -> Tomografia | B9: =+'Costos DxI'!H5 -> 0.09544488882
A10: =+'Costos DxI'!A6 -> Resonancia | B10: =+'Costos DxI'!H6 -> 0.06966727611
A11: =+'Costos DxI'!A7 -> Radiologia | B11: =+'Costos DxI'!H7 -> 0.1911690274
A12: =+'Costos DxI'!A8 -> Ecografia | B12: =+'Costos DxI'!H8 -> 0.1734983349
A13: =+'Costos DxI'!A9 -> Mamografía | B13: =+'Costos DxI'!H9 -> 0.1458504238
A22: Variación anual
B25: 2021 | C25: 2022 | D25: 2023 | E25: 2024*
A26: Tomografía | B26: =+'Costos DxI'!R8 -> 0.4171742708 | C26: =+'Costos DxI'!S8 -> 0.8725156841 | D26: =+'Costos DxI'!T8 -> 2.079667519 | E26: =+'Costos DxI'!U8 -> 0.312477889
A27: Resonancia | B27: =+'Costos DxI'!R9 -> 0.3568994038 | C27: =+'Costos DxI'!S9 -> 0.8258877434 | D27: =+'Costos DxI'!T9 -> 2.247338233 | E27: =+'Costos DxI'!U9 -> 0.3070668823
A28: Radiología | B28: =+'Costos DxI'!R10 -> 0.6008706298 | C28: =+'Costos DxI'!S10 -> 1.023283481 | D28: =+'Costos DxI'!T10 -> 1.591264175 | E28: =+'Costos DxI'!U10 -> 0.3541443807
A29: Ecografía | B29: =+'Costos DxI'!R11 -> 0.5301838976 | C29: =+'Costos DxI'!S11 -> 0.9890011891 | D29: =+'Costos DxI'!T11 -> 1.67386895 | E29: =+'Costos DxI'!U11 -> 0.3674821936
A30: Mamografía | B30: =+'Costos DxI'!R12 -> 0.4993429698 | C30: =+'Costos DxI'!S12 -> 0.9104294479 | D30: =+'Costos DxI'!T12 -> 1.895023134 | E30: =+'Costos DxI'!U12 -> 0.3331126907
A31: Promedio | B31: =+'Costos DxI'!R7 -> 0.4230032663 | C31: =+'Costos DxI'!S7 -> 0.8797115756 | D31: =+'Costos DxI'!T7 -> 2.045261762 | E31: =+'Costos DxI'!U7 -> 0.3200361252
A32: * A febrero

Sheet Cuotas EMPP
A3: VARIACIÓN FEBRERO 2024 | C3: =+'Aumentos prepagas'!C73 -> 0.2809090909
A6: VARIACIÓN MARZO 2024 | C6: =+'Aumentos prepagas'!C74 -> 0.2061636364
A9: Variación Anual
A11: 2017 | B11: =+'Aumentos prepagas'!K65 -> 0.3140311804
A12: 2018 | B12: =+'Aumentos prepagas'!K66 -> 0.4084745763
A13: 2019 | B13: =+'Aumentos prepagas'!K67 -> 0.6064981949
A14: 2020 | B14: =+'Aumentos prepagas'!K68 -> 0.09962546816
A15: 2021 | B15: =+'Aumentos prepagas'!K69 -> 0.48
A16: 2022 | B16: =+'Aumentos prepagas'!K70 -> 1.009
A17: 2023 | B17: =+'Aumentos prepagas'!K71 -> 1.357599196
A18: 2024* | B18: =+'Aumentos prepagas'!K72 -> 0.782978876
A19: * Acumulado a Febrero

Sheet Aranceles
A3: VARIACIÓN FEBRERO 24 | C3: =+'Aranceles datos'!C41 -> 0.2275363636
A6: VARIACIÓN FEBRERO 2024 | C6: =+'Aranceles datos'!C41 -> 0.2275363636
A9: Variación Anual
A11: 2017 | B11: =+'Aranceles datos'!G11 -> 0.1450617284
A12: 2018 | B12: =+'Aranceles datos'!G12 -> 0.1940700809
A13: 2019 | B13: =+'Aranceles datos'!G13 -> 0.3002257336
A14: 2020 | B14: =+'Aranceles datos'!G14 -> 0.2986111111
A15: 2021 | B15: =+'Aranceles datos'!G15 -> 0.4743905165
A16: 2022 | B16: =+'Aranceles datos'!G16 -> 0.8609252204
A17: 2023 | B17: =+'Aranceles datos'!G17 -> 1.133844233
A18: 2024* | B18: =+'Aranceles datos'!E41 -> 0.6694494545
A19: * Acumulado a Febrero

Sheet Proyecciones REM
A1: Fuente: Informe mensual SORDIC
A2: PROYECCIONES TIPO DE CAMBIO E IPC
A3: REM - BANCO CENTRAL
B7: IPC | E7: Tipo de cambio
A8: Período | B8: Mediana | C8: Promedio | E8: Mediana | F8: Promedio
A9: 2024-03-01 | B9: 14.25 | C9: 14.68194307 | E9: 860 | F9: 865.5749514
A10: 2024-04-01 | B10: 12 | C10: 12.02646659 | E10: 927.81 | F10: 957.0183447
A11: 2024-05-01 | B11: 10 | C11: 10.17957728 | E11: 1010.555 | F11: 1045.592475
A12: 2024-06-01 | B12: 8.5 | C12: 8.772103638 | E12: 1111.525109 | F12: 1134.456741
A13: 2024-07-01 | B13: 7.830205164 | C13: 7.942944821 | E13: 1191.55 | F13: 1239.815797
A14: 2024-08-01 | B14: 7 | C14: 7.013968497 | E14: 1273.855764 | F14: 1319.508553

Sheet Calcule su arancel (hidden)
D9: Coloque sus aranceles de Dic 2023
F10: Valor esperado* a Febrero 2024
F11: =+IF(D11="","",D11*(1+Aranceles!$B$18)) -> 
A21: *El valor esperado corresponde al 90% del aumento de los valores de las cuotas de EMPP

Sheet Calcule su Variación
D9: En este gráfico puede comparar la variación de los aranceles que recibió entre febrero y diciembre, con la variación de otras variables de la economía, incluso el aumento de aranceles teórico que deberían trasladar las prepagas. Para el cálculo, tiene que colocar los valores en pesos de los aranceles de diciembre y febrero de una práctica o los aranceles promedios de un conjunto de prácticas, ya sea por tipo de prestación, por financiador, etc.
D16: Coloque sus aranceles | G16: Variación a Febrero 24
B18: Valor a diciembre 2023 | G18: =IF(D22="","",D22/D18-1) -> 
B22: Valor a febrero 2024
A28: *El valor esperado corresponde al 90% del aumento de los valores de las cuotas de EMPP

Sheet hoja ayuda (hidden)
B9: su arancel | C9: =+'Calcule su Variación'!G18 -> 
B10: Aumento Arancel teórico | C10: =+Aranceles!B18 -> 0.6694494545
B11: IPC | C11: =+IPC!B15 -> 0.3658406261
B12: IPC Salud | C12: =+'IPC Salud'!B15 -> 0.3680541754
B13: Dólar oficial | C13: =+'Dolar oficial'!B16 -> 0.2871529888
B14: EMPP | C14: =+'Cuotas EMPP'!B18 -> 0.782978876

Sheet Notas metodológicas
A4: El presente tablero tiene el objetivo de monitorear las principales variables de la economía que impactan en los costos y los ingresos de los prestadores de servicios de salud. Se actualiza mensualmente en función de la publicación de datos oficiales y proyecciones. Se calcula la variación del último mes disponible, la variación anual, y acumulada según períodos disponibles de análisis. Las fuentes de información para cada variable son las siguientes:
A10: IPC: Índice de precios al consumidor con cobertura nacional. Período de referencia: Diciembre 2016=100. Nivel General. Fuente INDEC. Actualización mensual, a los 15 días del mes siguiente
A12: IPC Salud: Índice de precios al consumidor con cobertura nacional. Período de referencia: Diciembre 2016=100. Rubro Salud. Fuente INDEC. Actualización mensual, a los 15 días del mes siguiente
A14: Dólar oficial: Tipo de cambio venta. Promedios mensuales. Fuente: Banco Nación.
A16: Salarios: variación según paritarias acordadas en el CCT 108/75. Fuente: Acuerdo paritartias del sector.
A18: Costos: Informe mensual Sistema Estadístico de Costos de Diagnóstico por Imágenes en la Provincia de Córdoba. Fuente: SORDIC.
A20: Cuotas EMMP: Hasta diciembre 2023 aumentos autorizados en función del Indice de Costos de Salud. Resolución 1293/2022. A partir de 2024 aumentos discrecionales del sector Fuente: SSS.
A22: Aranceles: Hasta diciembre 2023 aumentos autorizados en función del 90% Indice de Costos de Salud. Resolución 1293/2022. A partir de 2024 aumentos discrecionales del sector Fuente: SSS.
A24: Proyecciones tipo de cambio e inflación: Relevamiento de expectativas de mercado. Fuente: Banco Central.

Sheet Salarios datos (hidden)
A1: CCT108/75. categorías y puestos de trabajo | B1: Profesionales Bioquímicos - nutricionistas | C1: Primera Categoría | D1: Segunda categoría | E1: Tercera categoria | F1: Cuarta categoría | G1: Quinta categoria | H1: Promedio | J1: 100
A2: 2021-01-01 | B2: 51382 | C2: 46722 | D2: 44675 | E2: 43452 | F2: 40608 | G2: 37366 | H2: =+AVERAGE(B2:G2) -> 44034.16667 | J2: 100
A3: 2021-02-01 | B3: 54819 | C3: 49848 | D3: 47664 | E3: 46359 | F3: 43325 | G3: 39866 | H3: =+AVERAGE(B3:G3) -> 46980.16667 | I3: =+H3/H2-1 -> 0.06690259458 | J3: =+J2*(1+I3) -> 106.6902595 | L3: 2019 | M3: 0.4689880861
A4: 2021-03-01 | B4: 58257 | C4: 52974 | D4: 50653 | E4: 49266 | F4: 46042 | G4: 42366 | H4: 49926.33333 | I4: =+H4/H3-1 -> 0.06271086026 | J4: =+J3*(1+I4) -> 113.3808974 | L4: 2020 | M4: 0.1831273702
A5: 2021-04-01 | B5: 66188 | C5: 60186 | D5: 57549 | E5: 55973 | F5: 52310 | G5: 48134 | H5: 56723.33333 | I5: 0.1361405805 | J5: 128.8166386 | L5: 2021 | M5: 0.905396631
A6: 2021-05-01 | B6: =+B5 -> 66188 | C6: =+C5 -> 60186 | D6: 57549 | E6: 55973 | F6: 52310 | G6: 48134 | H6: 56723.33333 | I6: 0 | J6: 128.8166386 | L6: 2022 | M6: 0.9800034839
A7: 2021-06-01 | B7: =+B6 -> 66188 | C7: 60186 | D7: 57549 | E7: 55973 | F7: 52310 | G7: 48134 | H7: 56723.33333 | I7: 0 | J7: 128.8166386 | L7: 2023 | M7: 1.58567558
A8: 2021-07-01 | B8: 76116 | C8: 69214 | D8: 66180 | E8: 64369 | F8: 60157 | G8: 55354 | H8: 65231.66667 | I8: 0.1499970618 | J8: 148.1387559 | L8: 2024 | M8: =+J39/J37-1 -> 0.2999999926
A9: 2021-08-01 | B9: =+B8 -> 76116 | C9: =+C8 -> 69214 | D9: 66180 | E9: 64369 | F9: 60157 | G9: 55354 | H9: 65231.66667 | I9: 0 | J9: 148.1387559
A10: 2021-09-01 | B10: 86045 | C10: 78242 | D10: 74813 | E10: 72755 | F10: 68003 | G10: 62575 | H10: 73738.83333 | I10: 0.1304146759 | J10: 167.4582237
A11: 2021-10-01 | B11: =+B10 -> 86045 | C11: 78242 | D11: 74813 | E11: 72755 | F11: 68003 | G11: 62575 | H11: 73738.83333 | I11: 0 | J11: 167.4582237
A12: 2021-11-01 | B12: 92663 | C12: 84260 | D12: 80568 | E12: 78363 | F12: 73234 | G12: 67388 | H12: 79412.66667 | I12: 0.07694498376 | J12: 180.343294
A13: 2021-12-01 | B13: =+B12 -> 92663 | C13: =+C12 -> 84260 | D13: 80568 | E13: 78363 | F13: 73234 | G13: 67388 | H13: 79412.66667 | I13: 0 | J13: 180.343294
A14: 2022-01-01 | B14: =+B13 -> 92663 | C14: 84260 | D14: 80568 | E14: 78363 | F14: 73234 | G14: 67388 | H14: 79412.66667 | I14: 0 | J14: 180.343294
A15: 2022-02-01 | B15: 97958.55 | C15: 89075.35 | D15: 85171.87 | E15: 82840.57 | F15: 77419.01 | G15: 71238.73 | H15: 83950.68 | I15: 0.05714470404 | J15: 190.6489582
A16: 2022-03-01 | B16: 101929.84 | C16: 92686.52 | D16: 88624.78 | E16: 86198.97 | F16: 80557.62 | G16: 74126.79 | H16: 87354.08667 | I16: 0.04054054913 | J16: 198.3779717
A17: 2022-04-01 | B17: =+B16 -> 101929.84 | C17: =+C16 -> 92686.52 | D17: 88624.78 | E17: 86198.97 | F17: 80557.62 | G17: 74126.79 | H17: 87354.08667 | I17: 0 | J17: 198.3779717
A18: 2022-05-01 | B18: 113142 | C18: 102882 | D18: 98373 | E18: 95680 | F18: 89419 | G18: 82281 | H18: 96962.83333 | I18: 0.1099976777 | J18: 220.1990878
A19: 2022-06-01 | B19: 124354 | C19: 113078 | D19: 108122 | E19: 105163 | F19: 98280 | G19: 90435 | H19: 106572 | I19: 0.09910154578 | J19: 242.0211578
A20: 2022-07-01 | B20: =+B19 -> 124354 | C20: =+C19 -> 113078 | D20: 108122 | E20: 105163 | F20: 98280 | G20: 90435 | H20: 106572 | I20: 0 | J20: 242.0211578
A21: 2022-08-01 | B21: 143721 | C21: 130688 | D21: 124961 | E21: 121541 | F21: 113586 | G21: 104518 | H21: 123169.1667 | I21: 0.1557366538 | J21: 279.7127231
A22: 2022-09-01 | B22: =+B21 -> 143721 | C22: 130688 | D22: 124961 | E22: 121541 | F22: 113586 | G22: 104518 | H22: 123169.1667 | I22: 0 | J22: 279.7127231
A23: 2022-10-01 | B23: 150856.16 | C23: 137176.05 | D23: 131164.67 | E23: 127574.48 | F23: 119225.28 | G23: 109707.65 | H23: 129284.0483 | I23: 0.04964620475 | J23: 293.5993982
A24: 2022-11-01 | B24: 167164.94 | C24: 152005.89 | D24: 145344.64 | E24: 141366.31 | F24: 132114.5 | G24: 121567.94 | H24: 143260.7033 | I24: 0.1081081168 | J24: 325.3398762
A25: 2022-12-01 | B25: 183473.71 | C25: 166835.74 | D25: 159524.6 | E25: 155158.15 | F25: 145003.72 | G25: 133428.22 | H25: 157237.3567 | I25: 0.09756097107 | J25: 357.0803505
A26: 2023-01-01 | B26: 183473.71 | C26: 166835.74 | D26: 159524.6 | E26: 155158.15 | F26: 145003.72 | G26: 133428.22 | H26: 157237.3567 | I26: 0 | J26: 357.0803505
A27: 2023-02-01 | B27: 190608.8 | C27: 173323.46 | D27: 165728.34 | E27: 161192.07 | F27: 150642.75 | G27: 138617.1 | H27: 163352.0867 | I27: 0.03888853215 | J27: 370.9666812
A28: 2023-03-01 | B28: 199782.49 | C28: 181665.58 | D28: 173704.57 | E28: 168949.98 | F28: 157892.94 | G28: 145288.51 | H28: 171214.0117 | I28: 0.04812870873 | J28: 388.8208285
A29: 2023-04-01 | B29: 217762.9141 | C29: 198015.4822 | D29: 189337.9813 | E29: 184155.4782 | F29: 172103.3046 | G29: 158364.4759 | H29: 186623.2727 | I29: 0.09 | J29: 423.8147031
A30: 2023-05-01 | B30: 235743.3382 | C30: 214365.3844 | D30: 204971.3926 | E30: 199360.9764 | F30: 186313.6692 | G30: 171440.4418 | H30: 202032.5338 | I30: 0.08256880734 | J30: 458.8085777
A31: 2023-06-01 | B31: 251725.9374 | C31: 228898.6308 | D31: 218867.7582 | E31: 212876.9748 | F31: 198945.1044 | G31: 183063.5226 | H31: 215729.6547 | I31: 0.06779661017 | J31: 489.9142439
A32: 2023-07-01 | B32: 267708.5366 | C32: 243431.8772 | D32: 232764.1238 | E32: 226392.9732 | F32: 211576.5396 | G32: 194686.6034 | H32: 229426.7756 | I32: 0.06349206349 | J32: 521.0199102
A33: 2023-08-01 | B33: 291682.44 | C33: 265231.75 | D33: 253608.67 | E33: 246666.97 | F33: 230523.69 | G33: 212121.22 | H33: 249972.4567 | I33: 0.08955223721 | J33: 567.6784088
A34: 2023-09-01 | B34: 325645.46 | C34: 296114.9 | D34: 283138.45 | E34: 275388.47 | F34: 257365.49 | G34: 236820.27 | H34: 279078.84 | I34: 0.1164383617 | J34: 633.7779527
A35: 2023-10-01 | B35: 343625.88 | C35: 312464.8 | D35: 298771.86 | E35: 290593.97 | F35: 271575.86 | G35: 249896.24 | H35: 294488.1017 | I35: 0.05521472594 | J35: 668.7718287
A36: 2023-11-01 | B36: 403760.41 | C36: 367146.14 | D36: 351056.94 | E36: 341447.91 | F36: 319101.63 | G36: 293628.08 | H36: 346023.5183 | I36: 0.1749999962 | J36: 785.8068962
A37: 2023-12-01 | B37: 474403.5 | C37: 431383.09 | D37: 412478.87 | E37: 401188.62 | F37: 374932.58 | G37: 345002.1 | H37: 406564.7933 | I37: 0.1749628906 | J37: 923.2939422
A38: 2024-01-01 | B38: =+B37+70000 -> 544403.5 | C38: 501383.09 | D38: 482478.87 | E38: 471188.62 | F38: 444932.58 | G38: 415002.1 | H38: =+AVERAGE(B38:G38) -> 476564.7933 | I38: 0.1721742786 | J38: 1082.261411
A39: 2024-02-01 | B39: =+'[1]Base de datos'!B71 -> 616724.55 | C39: =+'[1]Base de datos'!C71 -> 560798.01 | D39: =+'[1]Base de datos'!D71 -> 536222.53 | E39: =+'[1]Base de datos'!E71 -> 521545.21 | F39: =+'[1]Base de datos'!F71 -> 487412.35 | G39: =+'[1]Base de datos'!G71 -> 448502.72 | H39: 528534.2283 | I39: 0.1090500929 | J39: 1200.282118
A40: 2024-03-01 | B40: =+'[1]Base de datos'!B72 -> 690731.5 | C40: =+'[1]Base de datos'!C72 -> 628093.77 | D40: =+'[1]Base de datos'!D72 -> 600569.23 | E40: =+'[1]Base de datos'!E72 -> 584130.64 | F40: =+'[1]Base de datos'!F72 -> 545901.83 | G40: =+'[1]Base de datos'!G72 -> 502323.05 | H40: 591958.3367 | I40: 0.1200000018 | J40: 1344.315974

Sheet Dolar datos (hidden)
A1: Fecha cotizacion | B1: Mes | C1: Año | D1: Compra | E1: Venta
A2: 2016-12-01 | B2: =+MONTH(A2) -> 12 | C2: =+YEAR(A2) -> 2016 | D2: 15.65 | E2: 16.05
A3: 2016-12-02 | B3: =+MONTH(A3) -> 12 | C3: =+YEAR(A3) -> 2016 | D3: 15.75 | E3: 16.15
A4: 2016-12-05 | B4: 12 | C4: 2016 | D4: 15.7 | E4: 16.1
A5: 2016-12-06 | B5: 12 | C5: 2016 | D5: 15.7 | E5: 16.1
A6: 2016-12-07 | B6: 12 | C6: 2016 | D6: 15.8 | E6: 16.2
A7: 2016-12-12 | B7: 12 | C7: 2016 | D7: 15.8 | E7: 16.2
A8: 2016-12-13 | B8: 12 | C8: 2016 | D8: 15.75 | E8: 16.15
A9: 2016-12-14 | B9: 12 | C9: 2016 | D9: 15.75 | E9: 16.15
A10: 2016-12-15 | B10: 12 | C10: 2016 | D10: 15.75 | E10: 16.15
A11: 2016-12-16 | B11: 12 | C11: 2016 | D11: 15.7 | E11: 16.1
A12: 2016-12-19 | B12: 12 | C12: 2016 | D12: 15.6 | E12: 16
A13: 2016-12-20 | B13: 12 | C13: 2016 | D13: 15.65 | E13: 16.05
A14: 2016-12-21 | B14: 12 | C14: 2016 | D14: 15.6 | E14: 16
A15: 2016-12-22 | B15: 12 | C15: 2016 | D15: 15.55 | E15: 15.95
A16: 2016-12-23 | B16: 12 | C16: 2016 | D16: 15.3 | E16: 15.7
A17: 2016-12-26 | B17: 12 | C17: 2016 | D17: 15.35 | E17: 15.75
A18: 2016-12-27 | B18: 12 | C18: 2016 | D18: 15.35 | E18: 15.75
A19: 2016-12-28 | B19: 12 | C19: 2016 | D19: 15.55 | E19: 15.95
A20: 2016-12-29 | B20: 12 | C20: 2016 | D20: 15.7 | E20: 16.1
A21: 2016-12-30 | B21: 12 | C21: 2016 | D21: 15.7 | E21: 16.1
A22: 2017-01-02 | B22: 1 | C22: 2017 | D22: 15.7 | E22: 16.1
A23: 2017-01-03 | B23: 1 | C23: 2017 | D23: 15.7 | E23: 16.1
A24: 2017-01-04 | B24: 1 | C24: 2017 | D24: 15.9 | E24: 16.3
A25: 2017-01-05 | B25: 1 | C25: 2017 | D25: 15.8 | E25: 16.2
A26: 2017-01-06 | B26: 1 | C26: 2017 | D26: 15.6 | E26: 16
A27: 2017-01-09 | B27: 1 | C27: 2017 | D27: 15.65 | E27: 16.05
A28: 2017-01-10 | B28: 1 | C28: 2017 | D28: 15.65 | E28: 16.05
A29: 2017-01-11 | B29: 1 | C29: 2017 | D29: 15.65 | E29: 16.05
A30: 2017-01-12 | B30: 1 | C30: 2017 | D30: 15.65 | E30: 16.05
A31: 2017-01-13 | B31: 1 | C31: 2017 | D31: 15.65 | E31: 16.05
A32: 2017-01-16 | B32: 1 | C32: 2017 | D32: 15.65 | E32: 16.05
A33: 2017-01-17 | B33: 1 | C33: 2017 | D33: 15.7 | E33: 16.1
A34: 2017-01-18 | B34: 1 | C34: 2017 | D34: 15.8 | E34: 16.2
A35: 2017-01-19 | B35: 1 | C35: 2017 | D35: 15.7 | E35: 16.1
A36: 2017-01-20 | B36: 1 | C36: 2017 | D36: 15.7 | E36: 16.1
A37: 2017-01-23 | B37: 1 | C37: 2017 | D37: 15.75 | E37: 16.15
A38: 2017-01-24 | B38: 1 | C38: 2017 | D38: 15.75 | E38: 16.15
A39: 2017-01-25 | B39: 1 | C39: 2017 | D39: 15.75 | E39: 16.15
A40: 2017-01-26 | B40: 1 | C40: 2017 | D40: 15.75 | E40: 16.15
A41: 2017-01-27 | B41: 1 | C41: 2017 | D41: 15.7 | E41: 16.1
A42: 2017-01-30 | B42: 1 | C42: 2017 | D42: 15.7 | E42: 16.1
A43: 2017-01-31 | B43: 1 | C43: 2017 | D43: 15.7 | E43: 16.1
A44: 2017-02-01 | B44: 2 | C44: 2017 | D44: 15.6 | E44: 16
A45: 2017-02-02 | B45: 2 | C45: 2017 | D45: 15.5 | E45: 15.9
A46: 2017-02-03 | B46: 2 | C46: 2017 | D46: 15.4 | E46: 15.8
A47: 2017-02-06 | B47: 2 | C47: 2017 | D47: 15.6 | E47: 16
A48: 2017-02-07 | B48: 2 | C48: 2017 | D48: 15.45 | E48: 15.85
A49: 2017-02-08 | B49: 2 | C49: 2017 | D49: 15.45 | E49: 15.85
A50: 2017-02-09 | B50: 2 | C50: 2017 | D50: 15.4 | E50: 15.8
A51: 2017-02-10 | B51: 2 | C51: 2017 | D51: 15.3 | E51: 15.7
A52: 2017-02-13 | B52: 2 | C52: 2017 | D52: 15.3 | E52: 15.7
A53: 2017-02-14 | B53: 2 | C53: 2017 | D53: 15.3 | E53: 15.7
A54: 2017-02-15 | B54: 2 | C54: 2017 | D54: 15.2 | E54: 15.6
A55: 2017-02-16 | B55: 2 | C55: 2017 | D55: 15.2 | E55: 15.6
A56: 2017-02-17 | B56: 2 | C56: 2017 | D56: 15.5 | E56: 15.9
A57: 2017-02-20 | B57: 2 | C57: 2017 | D57: 15.5 | E57: 15.9
A58: 2017-02-21 | B58: 2 | C58: 2017 | D58: 15.4 | E58: 15.8
A59: 2017-02-22 | B59: 2 | C59: 2017 | D59: 15.3 | E59: 15.7
A60: 2017-02-23 | B60: 2 | C60: 2017 | D60: 15.4 | E60: 15.8
A61: 2017-02-24 | B61: 2 | C61: 2017 | D61: 15.3 | E61: 15.7
A62: 2017-03-01 | B62: 3 | C62: 2017 | D62: 15.2 | E62: 15.6
A63: 2017-03-02 | B63: 3 | C63: 2017 | D63: 15.2 | E63: 15.6
A64: 2017-03-03 | B64: 3 | C64: 2017 | D64: 15.2 | E64: 15.6
A65: 2017-03-06 | B65: 3 | C65: 2017 | D65: 15.25 | E65: 15.65
A66: 2017-03-07 | B66: 3 | C66: 2017 | D66: 15.35 | E66: 15.75
A67: 2017-03-08 | B67: =+MONTH(A67) -> 3 | C67: =+YEAR(A67) -> 2017 | D67: 15.4 | E67: 15.8
A68: 2017-03-09 | B68: 3 | C68: 2017 | D68: 15.35 | E68: 15.75
A69: 2017-03-10 | B69: 3 | C69: 2017 | D69: 15.3 | E69: 15.7
A70: 2017-03-13 | B70: 3 | C70: 2017 | D70: 15.3 | E70: 15.7
A71: 2017-03-14 | B71: 3 | C71: 2017 | D71: 15.3 | E71: 15.7
A72: 2017-03-15 | B72: 3 | C72: 2017 | D72: 15.35 | E72: 15.75
A73: 2017-03-16 | B73: 3 | C73: 2017 | D73: 15.35 | E73: 15.75
A74: 2017-03-17 | B74: 3 | C74: 2017 | D74: 15.35 | E74: 15.75
A75: 2017-03-20 | B75: 3 | C75: 2017 | D75: 15.4 | E75: 15.8
A76: 2017-03-21 | B76: 3 | C76: 2017 | D76: 15.4 | E76: 15.8
A77: 2017-03-22 | B77: 3 | C77: 2017 | D77: 15.4 | E77: 15.8
A78: 2017-03-23 | B78: 3 | C78: 2017 | D78: 15.4 | E78: 15.8
A79: 2017-03-27 | B79: 3 | C79: 2017 | D79: 15.4 | E79: 15.8
A80: 2017-03-28 | B80: 3 | C80: 2017 | D80: 15.4 | E80: 15.8
A81: 2017-03-29 | B81: 3 | C81: 2017 | D81: 15.25 | E81: 15.65
A82: 2017-03-30 | B82: 3 | C82: 2017 | D82: 15.2 | E82: 15.6
A83: 2017-03-31 | B83: 3 | C83: 2017 | D83: 15.2 | E83: 15.6
A84: 2017-04-03 | B84: 4 | C84: 2017 | D84: 15.2 | E84: 15.6
A85: 2017-04-04 | B85: 4 | C85: 2017 | D85: 15.15 | E85: 15.55
A86: 2017-04-05 | B86: 4 | C86: 2017 | D86: 15.15 | E86: 15.55
A87: 2017-04-06 | B87: 4 | C87: 2017 | D87: 15.15 | E87: 15.55
A88: 2017-04-07 | B88: 4 | C88: 2017 | D88: 15.15 | E88: 15.55
A89: 2017-04-10 | B89: 4 | C89: 2017 | D89: 15 | E89: 15.4
A90: 2017-04-11 | B90: 4 | C90: 2017 | D90: 15.05 | E90: 15.45
A91: 2017-04-12 | B91: 4 | C91: 2017 | D91: 15 | E91: 15.4
A92: 2017-04-17 | B92: 4 | C92: 2017 | D92: 15 | E92: 15.4
A93: 2017-04-18 | B93: 4 | C93: 2017 | D93: 15.1 | E93: 15.5
A94: 2017-04-19 | B94: 4 | C94: 2017 | D94: 15.2 | E94: 15.6
A95: 2017-04-20 | B95: 4 | C95: 2017 | D95: 15.2 | E95: 15.6
A96: 2017-04-21 | B96: 4 | C96: 2017 | D96: 15.3 | E96: 15.7
A97: 2017-04-24 | B97: 4 | C97: 2017 | D97: 15.2 | E97: 15.6
A98: 2017-04-25 | B98: 4 | C98: 2017 | D98: 15.2 | E98: 15.6
A99: 2017-04-26 | B99: 4 | C99: 2017 | D99: 15.3 | E99: 15.7
A100: 2017-04-27 | B100: 4 | C100: 2017 | D100: 15.2 | E100: 15.6
A101: 2017-04-28 | B101: 4 | C101: 2017 | D101: 15.2 | E101: 15.6
A102: 2017-05-02 | B102: 5 | C102: 2017 | D102: 15.1 | E102: 15.5
A103: 2017-05-03 | B103: 5 | C103: 2017 | D103: 15.1 | E103: 15.5
A104: 2017-05-04 | B104: 5 | C104: 2017 | D104: 15.1 | E104: 15.5
A105: 2017-05-05 | B105: 5 | C105: 2017 | D105: 15.15 | E105: 15.55
A106: 2017-05-08 | B106: 5 | C106: 2017 | D106: 15.3 | E106: 15.7
A107: 2017-05-09 | B107: 5 | C107: 2017 | D107: 15.3 | E107: 15.7
A108: 2017-05-10 | B108: 5 | C108: 2017 | D108: 15.3 | E108: 15.7
A109: 2017-05-11 | B109: 5 | C109: 2017 | D109: 15.25 | E109: 15.65
A110: 2017-05-12 | B110: 5 | C110: 2017 | D110: 15.25 | E110: 15.65
A111: 2017-05-15 | B111: 5 | C111: 2017 | D111: 15.3 | E111: 15.7
A112: 2017-05-16 | B112: 5 | C112: 2017 | D112: 15.4 | E112: 15.8
A113: 2017-05-17 | B113: 5 | C113: 2017 | D113: 15.4 | E113: 15.8
A114: 2017-05-18 | B114: 5 | C114: 2017 | D114: 15.8 | E114: 16.2
A115: 2017-05-19 | B115: 5 | C115: 2017 | D115: 15.8 | E115: 16.2
A116: 2017-05-22 | B116: 5 | C116: 2017 | D116: 15.98 | E116: 16.38
A117: 2017-05-23 | B117: 5 | C117: 2017 | D117: 15.9 | E117: 16.3
A118: 2017-05-24 | B118: 5 | C118: 2017 | D118: 15.9 | E118: 16.3
A119: 2017-05-26 | B119: 5 | C119: 2017 | D119: 15.8 | E119: 16.2
A120: 2017-05-29 | B120: 5 | C120: 2017 | D120: 15.8 | E120: 16.2
A121: 2017-05-30 | B121: 5 | C121: 2017 | D121: 15.95 | E121: 16.35
A122: 2017-05-31 | B122: 5 | C122: 2017 | D122: 15.9 | E122: 16.3
A123: 2017-06-01 | B123: 6 | C123: 2017 | D123: 15.85 | E123: 16.25
A124: 2017-06-02 | B124: 6 | C124: 2017 | D124: 15.8 | E124: 16.2
A125: 2017-06-05 | B125: 6 | C125: 2017 | D125: 15.8 | E125: 16.2
A126: 2017-06-06 | B126: 6 | C126: 2017 | D126: 15.8 | E126: 16.2
A127: 2017-06-07 | B127: 6 | C127: 2017 | D127: 15.8 | E127: 16.2
A128: 2017-06-08 | B128: 6 | C128: 2017 | D128: 15.7 | E128: 16.1
A129: 2017-06-09 | B129: 6 | C129: 2017 | D129: 15.7 | E129: 16.1
A130: 2017-06-12 | B130: 6 | C130: 2017 | D130: 15.7 | E130: 16.1
A131: 2017-06-13 | B131: =+MONTH(A131) -> 6 | C131: =+YEAR(A131) -> 2017 | D131: 15.7 | E131: 16.1
A132: 2017-06-14 | B132: 6 | C132: 2017 | D132: 15.65 | E132: 16.05
A133: 2017-06-15 | B133: 6 | C133: 2017 | D133: 15.75 | E133: 16.15
A134: 2017-06-16 | B134: 6 | C134: 2017 | D134: 15.85 | E134: 16.25
A135: 2017-06-19 | B135: 6 | C135: 2017 | D135: 15.95 | E135: 16.35
A136: 2017-06-21 | B136: 6 | C136: 2017 | D136: 16.05 | E136: 16.45
A137: 2017-06-22 | B137: 6 | C137: 2017 | D137: 15.95 | E137: 16.35
A138: 2017-06-23 | B138: 6 | C138: 2017 | D138: 15.95 | E138: 16.35
A139: 2017-06-26 | B139: 6 | C139: 2017 | D139: 16.1 | E139: 16.5
A140: 2017-06-27 | B140: 6 | C140: 2017 | D140: 16.2 | E140: 16.6
A141: 2017-06-28 | B141: 6 | C141: 2017 | D141: 16.25 | E141: 16.65
A142: 2017-06-29 | B142: 6 | C142: 2017 | D142: 16.3 | E142: 16.7
A143: 2017-06-30 | B143: 6 | C143: 2017 | D143: 16.4 | E143: 16.8
A144: 2017-07-03 | B144: 7 | C144: 2017 | D144: 16.6 | E144: 17
A145: 2017-07-04 | B145: 7 | C145: 2017 | D145: 16.76 | E145: 17.16
A146: 2017-07-05 | B146: 7 | C146: 2017 | D146: 16.97 | E146: 17.37
A147: 2017-07-06 | B147: 7 | C147: 2017 | D147: 16.93 | E147: 17.33
A148: 2017-07-07 | B148: 7 | C148: 2017 | D148: 16.81 | E148: 17.21
A149: 2017-07-10 | B149: 7 | C149: 2017 | D149: 16.78 | E149: 17.18
A150: 2017-07-11 | B150: 7 | C150: 2017 | D150: 16.8 | E150: 17.2
A151: 2017-07-12 | B151: 7 | C151: 2017 | D151: 16.75 | E151: 17.15
A152: 2017-07-13 | B152: 7 | C152: 2017 | D152: 16.75 | E152: 17.15
A153: 2017-07-14 | B153: 7 | C153: 2017 | D153: 16.65 | E153: 17.05
A154: 2017-07-17 | B154: 7 | C154: 2017 | D154: 16.7 | E154: 17.1
A155: 2017-07-18 | B155: 7 | C155: 2017 | D155: 17 | E155: 17.4
A156: 2017-07-19 | B156: 7 | C156: 2017 | D156: 16.95 | E156: 17.35
A157: 2017-07-20 | B157: 7 | C157: 2017 | D157: 17 | E157: 17.4
A158: 2017-07-21 | B158: 7 | C158: 2017 | D158: 17.2 | E158: 17.6
A159: 2017-07-24 | B159: 7 | C159: 2017 | D159: 17.25 | E159: 17.65
A160: 2017-07-25 | B160: 7 | C160: 2017 | D160: 17.25 | E160: 17.65
A161: 2017-07-26 | B161: 7 | C161: 2017 | D161: 17.3 | E161: 17.7
A162: 2017-07-27 | B162: 7 | C162: 2017 | D162: 17.45 | E162: 17.85
A163: 2017-07-28 | B163: 7 | C163: 2017 | D163: 17.59 | E163: 17.99
A164: 2017-07-31 | B164: 7 | C164: 2017 | D164: 17.45 | E164: 17.85
A165: 2017-08-01 | B165: 8 | C165: 2017 | D165: 17.385 | E165: 17.785
A166: 2017-08-02 | B166: 8 | C166: 2017 | D166: 17.4 | E166: 17.8
A167: 2017-08-03 | B167: 8 | C167: 2017 | D167: 17.45 | E167: 17.85
A168: 2017-08-04 | B168: 8 | C168: 2017 | D168: 17.45 | E168: 17.85
A169: 2017-08-07 | B169: 8 | C169: 2017 | D169: 17.5 | E169: 17.9
A170: 2017-08-08 | B170: 8 | C170: 2017 | D170: 17.5 | E170: 17.9
A171: 2017-08-09 | B171: 8 | C171: 2017 | D171: 17.5 | E171: 17.9
A172: 2017-08-10 | B172: 8 | C172: 2017 | D172: 17.5 | E172: 17.9
A173: 2017-08-11 | B173: 8 | C173: 2017 | D173: 17.5 | E173: 17.9
A174: 2017-08-14 | B174: 8 | C174: 2017 | D174: 16.95 | E174: 17.35
A175: 2017-08-15 | B175: 8 | C175: 2017 | D175: 16.85 | E175: 17.25
A176: 2017-08-16 | B176: 8 | C176: 2017 | D176: 17 | E176: 17.4
A177: 2017-08-17 | B177: 8 | C177: 2017 | D177: 17.15 | E177: 17.55
A178: 2017-08-18 | B178: 8 | C178: 2017 | D178: 17.1 | E178: 17.5
A179: 2017-08-22 | B179: 8 | C179: 2017 | D179: 17 | E179: 17.4
A180: 2017-08-23 | B180: 8 | C180: 2017 | D180: 17.05 | E180: 17.45
A181: 2017-08-24 | B181: 8 | C181: 2017 | D181: 17 | E181: 17.4
A182: 2017-08-25 | B182: 8 | C182: 2017 | D182: 17 | E182: 17.4
A183: 2017-08-28 | B183: 8 | C183: 2017 | D183: 17.03 | E183: 17.43
A184: 2017-08-29 | B184: 8 | C184: 2017 | D184: 17.2 | E184: 17.6
A185: 2017-08-30 | B185: 8 | C185: 2017 | D185: 17.2 | E185: 17.6
A186: 2017-08-31 | B186: 8 | C186: 2017 | D186: 17.1 | E186: 17.5
A187: 2017-09-01 | B187: 9 | C187: 2017 | D187: 17 | E187: 17.4
A188: 2017-09-04 | B188: 9 | C188: 2017 | D188: 17.05 | E188: 17.45
A189: 2017-09-05 | B189: 9 | C189: 2017 | D189: 17.05 | E189: 17.45
A190: 2017-09-06 | B190: 9 | C190: 2017 | D190: 17 | E190: 17.4
A191: 2017-09-07 | B191: 9 | C191: 2017 | D191: 17 | E191: 17.4
A192: 2017-09-08 | B192: 9 | C192: 2017 | D192: 17 | E192: 17.4
A193: 2017-09-11 | B193: 9 | C193: 2017 | D193: 16.95 | E193: 17.35
A194: 2017-09-12 | B194: 9 | C194: 2017 | D194: 16.9 | E194: 17.3
A195: 2017-09-13 | B195: =+MONTH(A195) -> 9 | C195: =+YEAR(A195) -> 2017 | D195: 16.85 | E195: 17.25
A196: 2017-09-14 | B196: 9 | C196: 2017 | D196: 16.8 | E196: 17.2
A197: 2017-09-15 | B197: 9 | C197: 2017 | D197: 16.8 | E197: 17.2
A198: 2017-09-18 | B198: 9 | C198: 2017 | D198: 16.9 | E198: 17.3
A199: 2017-09-19 | B199: 9 | C199: 2017 | D199: 16.95 | E199: 17.35
A200: 2017-09-20 | B200: 9 | C200: 2017 | D200: 17 | E200: 17.4
... 1571 more rows

Sheet tc prom mensual (hidden)
A3: Etiquetas de fila | B3: Promedio de Venta
A4: 2016 | B4: 16.035
A5: 12 | B5: 16.035
A6: 2017 | B6: 16.77310976
A7: 1 | B7: 16.10909091
A8: 2 | B8: 15.79444444
A9: 3 | B9: 15.71590909
A10: 4 | B10: 15.55277778
A11: 5 | B11: 15.91333333
A12: 6 | B12: 16.31666667
A13: 7 | B13: 17.39714286
A14: 8 | B14: 17.61886364
A15: 9 | B15: 17.4452381
A16: 10 | B16: 17.66904762
A17: 11 | B17: 17.6825
A18: 12 | B18: 17.94473684
A19: 2018 | B19: 28.61157025
A20: 1 | B20: 19.28181818
A21: 2 | B21: 20.08333333
A22: 3 | B22: 20.495
A23: 4 | B23: 20.48684211
A24: 5 | B24: 24.15952381
A25: 6 | B25: 27.095
A26: 7 | B26: 28.06666667
A27: 8 | B27: 30.66818182
A28: 9 | B28: 39.165
A29: 10 | B29: 37.95454545
A30: 11 | B30: 37.38421053
A31: 12 | B31: 38.73333333
A32: 2019 | B32: 49.61390041
A33: 1 | B33: 38.29545455
A34: 2 | B34: 39.3
A35: 3 | B35: 42.48947368
A36: 4 | B36: 44.26842105
A37: 5 | B37: 45.88181818
A38: 6 | B38: 44.74444444
A39: 7 | B39: 43.57142857
A40: 8 | B40: 54.22857143
A41: 9 | B41: 57.86904762
A42: 10 | B42: 60.81590909
A43: 11 | B43: 62.72368421
A44: 12 | B44: 62.73529412
A45: 2020 | B45: 73.859375
A46: 1 | B46: 63
A47: 2 | B47: 63.30555556
A48: 3 | B48: 64.56578947
A49: 4 | B49: 67.25
A50: 5 | B50: 69.71052632
A51: 6 | B51: 71.96428571
A52: 7 | B52: 75.05952381
A53: 8 | B53: 77.2875
A54: 9 | B54: 79.13636364
A55: 10 | B55: 82.54761905
A56: 11 | B56: 85.11842105
A57: 12 | B57: 87.75
A58: 2021 | B58: 100.244877
A59: 1 | B59: 90.9375
A60: 2 | B60: 93.52777778
A61: 3 | B61: 96.09090909
A62: 4 | B62: 98.2
A63: 5 | B63: 99.17105263
A64: 6 | B64: 100.2380952
A65: 7 | B65: 101.3095238
A66: 8 | B66: 102.2857143
A67: 9 | B67: 103.4431818
A68: 10 | B68: 104.5263158
A69: 11 | B69: 105.4285714
A70: 12 | B70: 106.95
A71: 2022 | B71: 136.4641393
A72: 1 | B72: 108.9642857
A73: 2 | B73: 111.5394737
A74: 3 | B74: 114.5833333
A75: 4 | B75: 118.3552632
A76: 5 | B76: 122.9
A77: 6 | B77: 127.675
A78: 7 | B78: 134.7261905
A79: 8 | B79: 141.6477273
A80: 9 | B80: 149.6190476
A81: 10 | B81: 158.6184211
A82: 11 | B82: 168.3928571
A83: 12 | B83: 179.2875
A84: 2023 | B84: 306.7041975
A85: 1 | B85: 189.0227273
A86: 2 | B86: 198.3333333
A87: 3 | B87: 209.75
A88: 4 | B88: 222.9166667
A89: 5 | B89: 239.975
A90: 6 | B90: 258.675
A91: 7 | B91: 278.1428571
A92: 8 | B92: 335.6818182
A93: 9 | B93: 365.5
A94: 10 | B94: 365.5
A95: 11 | B95: 369.325
A96: 12 | B96: 663.2957895 | C96: =+B96/B95-1 -> 0.7959677506
A97: 2024 | B97: 836.6973684
A98: 1 | B98: =+AVERAGE('Dolar datos'!E1722:E1743) -> 837.8295455
A99: 2 | B99: =+AVERAGE('Dolar datos'!E1744:E1762) -> 853.7631579

Sheet IPC Datos (hidden)
B4: IPC | C4: IPC Salud | D4: Variación mensual | F4: Acumulado anual
A5: 2016-12-01 | B5: 100 | C5: 100
A6: 2017-01-01 | B6: 101.6 | C6: 102.4 | D6: =+B6/B5-1 -> 0.016 | E6: =+C6/C5-1 -> 0.024
A7: 2017-02-01 | B7: 103.7 | C7: 105.1 | D7: =+B7/B6-1 -> 0.02066929134 | E7: =+C7/C6-1 -> 0.0263671875
A8: 2017-03-01 | B8: 106.1 | C8: 107.1 | D8: 0.0231436837 | E8: 0.01902949572
A9: 2017-04-01 | B9: 109 | C9: 109.1 | D9: 0.027332705 | E9: 0.01867413632
A10: 2017-05-01 | B10: 110.5 | C10: 110.7 | D10: 0.01376146789 | E10: 0.01466544455
A11: 2017-06-01 | B11: 111.8 | C11: 112.4 | D11: 0.01176470588 | E11: 0.01535682023
A12: 2017-07-01 | B12: 113.8 | C12: 116.1 | D12: 0.01788908766 | E12: 0.03291814947
A13: 2017-08-01 | B13: 115.4 | C13: 119 | D13: 0.01405975395 | E13: 0.02497846684
A14: 2017-09-01 | B14: 117.6 | C14: 121.9 | D14: 0.01906412478 | E14: 0.0243697479
A15: 2017-10-01 | B15: 119.4 | C15: 123.2 | D15: 0.01530612245 | E15: 0.01066447908
A16: 2017-11-01 | B16: 121 | C16: 124.8 | D16: 0.01340033501 | E16: 0.01298701299
A17: 2017-12-01 | B17: 124.8 | C17: 127.8 | D17: 0.03140495868 | E17: 0.02403846154
A18: 2018-01-01 | B18: 127 | C18: 130 | D18: 0.01762820513 | E18: 0.0172143975
A19: 2018-02-01 | B19: 130.1 | C19: 133.1 | D19: 0.02440944882 | E19: 0.02384615385
A20: 2018-03-01 | B20: 133.1 | C20: 134.8 | D20: 0.02305918524 | E20: 0.01277235162
A21: 2018-04-01 | B21: 136.8 | C21: 137.2 | D21: 0.02779864763 | E21: 0.0178041543
A22: 2018-05-01 | B22: 139.6 | C22: 140.3 | D22: 0.02046783626 | E22: 0.02259475219
A23: 2018-06-01 | B23: 144.8 | C23: 146.3 | D23: 0.03724928367 | E23: 0.04276550249
A24: 2018-07-01 | B24: 149.3 | C24: 150.4 | D24: 0.03107734807 | E24: 0.02802460697
A25: 2018-08-01 | B25: 155.1 | C25: 156.5 | D25: 0.03884795713 | E25: 0.04055851064
A26: 2018-09-01 | B26: 165.2 | C26: 163.6 | D26: 0.06511927789 | E26: 0.04536741214
A27: 2018-10-01 | B27: 174.1 | C27: 172.6 | D27: 0.05387409201 | E27: 0.05501222494
A28: 2018-11-01 | B28: 179.6 | C28: 182.3 | D28: 0.03159103963 | E28: 0.05619930475
A29: 2018-12-01 | B29: 184.3 | C29: 191.9 | D29: 0.02616926503 | E29: 0.05266044981
A30: 2019-01-01 | B30: 189.6 | C30: 197.5 | D30: 0.02875746066 | E30: 0.02918186555
A31: 2019-02-01 | B31: 196.8 | C31: 203.8 | D31: 0.03797468354 | E31: 0.03189873418
A32: 2019-03-01 | B32: 206 | C32: 210.4 | D32: 0.04674796748 | E32: 0.03238469087
A33: 2019-04-01 | B33: 213.1 | C33: 217.7 | D33: 0.03446601942 | E33: 0.03469581749
A34: 2019-05-01 | B34: 219.6 | C34: 228.8 | D34: 0.03050211168 | E34: 0.05098759761
A35: 2019-06-01 | B35: 225.5 | C35: 236.9 | D35: 0.02686703097 | E35: 0.0354020979
A36: 2019-07-01 | B36: 230.5 | C36: 246.7 | D36: 0.022172949 | E36: 0.04136766568
A37: 2019-08-01 | B37: 239.6 | C37: 259.5 | D37: 0.03947939262 | E37: 0.05188488042
A38: 2019-09-01 | B38: 253.7 | C38: 281.1 | D38: 0.05884808013 | E38: 0.08323699422
A39: 2019-10-01 | B39: 262.1 | C39: 294.3 | D39: 0.03310997241 | E39: 0.0469583778
A40: 2019-11-01 | B40: 273.2 | C40: 312.8 | D40: 0.042350248 | E40: 0.06286102616
A41: 2019-12-01 | B41: 283.4 | C41: 330.3 | D41: 0.03733528551 | E41: 0.05594629156
A42: 2020-01-01 | B42: 289.8 | C42: 323.7 | D42: 0.02258292167 | E42: -0.0199818347
A43: 2020-02-01 | B43: 295.7 | C43: 325.2 | D43: 0.02035886818 | E43: 0.004633920297
A44: 2020-03-01 | B44: 305.6 | C44: 333.8 | D44: 0.03347987825 | E44: 0.02644526445
A45: 2020-04-01 | B45: 310.1 | C45: 337.8 | D45: 0.01472513089 | E45: 0.01198322349
A46: 2020-05-01 | B46: 314.9 | C46: 341.3 | D46: 0.01547887778 | E46: 0.01036116045
A47: 2020-06-01 | B47: 322 | C47: 349 | D47: 0.02254684027 | E47: 0.02256079695
A48: 2020-07-01 | B48: 328.2 | C48: 356.5 | D48: 0.01925465839 | E48: 0.02148997135
A49: 2020-08-01 | B49: 337.1 | C49: 365.1 | D49: 0.02711761121 | E49: 0.02412342216
A50: 2020-09-01 | B50: 346.6 | C50: 377.9 | D50: 0.0281815485 | E50: 0.03505888798
A51: 2020-10-01 | B51: 359.7 | C51: 389.5 | D51: 0.03779572995 | E51: 0.03069595131
A52: 2020-11-01 | B52: 371 | C52: 403.8 | D52: 0.03141506811 | E52: 0.03671373556
A53: 2020-12-01 | B53: 385.9 | C53: 425 | D53: 0.04016172507 | E53: 0.05250123824
A54: 2021-01-01 | B54: 401.5 | C54: 439.4 | D54: 0.04042498056 | E54: 0.03388235294
A55: 2021-02-01 | B55: 415.9 | C55: 454.7 | D55: 0.03586550436 | E55: 0.03482020938
A56: 2021-03-01 | B56: 435.9 | C56: 472.9 | D56: 0.04808848281 | E56: 0.04002639103
A57: 2021-04-01 | B57: 453.7 | C57: 490.5 | D57: 0.04083505391 | E57: 0.03721717065
A58: 2021-05-01 | B58: 468.7 | C58: 513.8 | D58: 0.03306149438 | E58: 0.04750254842
A59: 2021-06-01 | B59: 483.6 | C59: 530.3 | D59: 0.03179005761 | E59: 0.0321136629
A60: 2021-07-01 | B60: 498.1 | C60: 550.5 | D60: 0.0299834574 | E60: 0.03809164624
A61: 2021-08-01 | B61: 510.4 | C61: 573.7 | D61: 0.02469383658 | E61: 0.0421435059
A62: 2021-09-01 | B62: 528.5 | C62: 598.4 | D62: 0.03546238245 | E62: 0.0430538609
A63: 2021-10-01 | B63: 547.1 | C63: 626.7 | D63: 0.03519394513 | E63: 0.04729278075
A64: 2021-11-01 | B64: 560.9 | C64: 641.9 | D64: 0.02522390788 | E64: 0.02425402904
A65: 2021-12-01 | B65: 582.5 | C65: 645.1 | D65: 0.03850953824 | E65: 0.004985200187 | G65: =+B65/B53-1 -> 0.5094584089
A66: 2022-01-01 | B66: 605 | C66: 671.7 | D66: 0.03862660944 | E66: 0.04123391722
A67: 2022-02-01 | B67: 633.4 | C67: 696.1 | D67: 0.04694214876 | E67: 0.03632574066
A68: 2022-03-01 | B68: 676.1 | C68: 730.6 | D68: 0.06741395643 | E68: 0.04956184456
A69: 2022-04-01 | B69: 716.9 | C69: 777.3 | D69: 0.06034610265 | E69: 0.0639200657
A70: 2022-05-01 | B70: 753.1 | C70: 825.6 | D70: 0.05049518761 | E70: 0.06213817059
A71: 2022-06-01 | B71: 793 | C71: 886.8 | D71: =+B71/B70-1 -> 0.05298101182 | E71: =+C71/C70-1 -> 0.07412790698
A72: 2022-07-01 | B72: 851.8 | C72: 947.5 | D72: 0.07414880202 | E72: 0.06844835363
A73: 2022-08-01 | B73: 911.1 | C73: 1001.7 | D73: 0.06961728105 | E73: 0.05720316623
A74: 2022-09-01 | B74: 967.3 | C74: 1045.1 | D74: 0.06168367907 | E74: 0.04332634521
A75: 2022-10-01 | B75: 1028.7 | C75: 1119.4 | D75: 0.06347565388 | E75: 0.07109367525
A76: 2022-11-01 | B76: 1079.3 | C76: 1165.3 | D76: 0.04918829591 | E76: 0.04100410934
A77: 2022-12-01 | B77: 1134.6 | C77: 1231.5 | D77: 0.05123691281 | E77: 0.0568094053
A78: 2023-01-01 | B78: 1203 | C78: 1291.8 | D78: 0.06028556319 | E78: 0.04896467722
A79: 2023-02-01 | B79: 1282.7 | C79: 1360.5 | D79: 0.06625103907 | E79: 0.05318160706
A80: 2023-03-01 | B80: 1381.2 | C80: 1438.3 | D80: 0.07679114368 | E80: 0.05718485851
A81: 2023-04-01 | B81: 1497.2 | C81: 1533 | D81: 0.08398494063 | E81: 0.06584161858
A82: 2023-05-01 | B82: 1613.6 | C82: 1671.7 | D82: 0.07774512423 | E82: 0.09047619048
A83: 2023-06-01 | B83: 1709.6 | C83: 1815.4 | D83: 0.05949429846 | E83: 0.08596039959
A84: 2023-07-01 | B84: 1818.1 | C84: 1979.4 | D84: 0.06346513804 | E84: 0.09033821747
A85: 2023-08-01 | B85: 2044.3 | C85: 2281.6 | D85: 0.1244155987 | E85: 0.152672527
A86: 2023-09-01 | B86: 2304.9 | C86: 2499.3 | D86: 0.1274763978 | E86: 0.0954154979
A87: 2023-10-01 | B87: 2496.3 | C87: 2626.9 | D87: 0.08304047898 | E87: 0.0510542952
A88: 2023-11-01 | B88: 2816.1 | C88: 3043.9 | D88: 0.1281096022 | E88: 0.1587422437
A89: 2023-12-01 | B89: 3533.2 | C89: 4035.9697 | D89: 0.2546429459 | E89: 0.3259205953
A90: 2024-01-01 | B90: 4261.5324 | C90: 4861.4923 | D90: 0.2061395902 | E90: 0.2045413275 | F90: =+B90/$B$89-1 -> 0.2061395902 | G90: =+C90/$C$89-1 -> 0.2045413275
A91: 2024-02-01 | B91: 4825.7881 | C91: 5521.4252 | D91: 0.1324067605 | E91: 0.1357469804 | F91: =+B91/$B$89-1 -> 0.3658406261 | G91: =+C91/$C$89-1 -> 0.3680541754
A92: Marzo 24 estimado REM

Sheet Aumentos prepagas (hidden)
A2: Anexo I. Evolución cuotas de Medicina Prepaga.
A3: Cuadro 12. Aumentos autorizados EMP
A5: Año | B5: Resolución Min. de Salud | C5: % | D5: Vigencia | E5: Incremento anual acumulado
A7: 2012 | B7: 1526/2012 | C7: 0.07 | D7: A partir de septiembre 2012 con respecto al valor vigente al 1° de junio de 2012 | E7: 0.161
C8: 0.08
B9: 1982/2012 | C9: 0.09 | D9: A partir de diciembre 2012 acumulativo a Sept 2012
A10: 2013 | B10: 534/2013 | C10: 0.08 | D10: A partir de mayo 2013 acumulativo a dic 2012 | E10: 0.183
B11: 1344/2013 | C11: 0.095 | D11: A partir de septiembre 2013 acumulativo a mayo 2013
A12: 2014 | B12: 1994/2013 | C12: 0.08 | D12: Según la fecha de notificación a los usuarios (se puede asumir que a partir de enero 2014). Acumulativo a sept 2013 | E12: 0.395
C13: 0.09
B14: 185/2014 | C14: 0.055 | D14: A partir de marzo 2014 (acumulativo con lo autorizado en la Res 1994/2013)
B15: 750/2014 | C15: 0.09 | D15: A partir del 1° de junio de 2014 (acumulativo con lo autorizado en la Res 185/2014)
B16: 1496/2014 | C16: 0.075 | D16: A partir del 1° de octubre de 2014 (acumulativo con lo autorizado en la Res 750/2014)
B17: 1880/2014 | C17: 0.04 | D17: A partir del 1° de diciembre de 2014 (acumulativo con lo autorizado en la Res 1496/2014)
A18: 2015 | B18: 49/2015 | C18: 0.04 | D18: A partir del 1° de marzo de 2015 (acumulativo con lo autorizado en la Res 1880/2014) | E18: 0.286
B19: 502/2015 | C19: 0.06 | D19: A partir del 1° de junio de 2015 (acumulativo con lo autorizado en la Res 49/2015)
B20: 1001/2015 | C20: 0.07 | D20: A partir del 1° de agosto de 2015 (acumulativo con lo autorizado en la Res 502/2015)
B21: 1567/2015 | C21: 0.09 | D21: A partir del 1° de octubre de 2015 (acumulativo con lo autorizado en la Res 1001/2015)
A22: 2016 | B22: 82/2016 | C22: 0.09 | D22: A partir del 1° de febrero de 2016 (acumulativo con lo autorizado en la Res 1567/2015) | E22: 0.426
B23: 572/2016 | C23: 0.15 | D23: A partir del 1° de junio de 2016 (acumulativo con lo autorizado en la Res 82/2016)
C24: 0.05 | D24: A partir del 1° de julio de 2016 (acumulativo con lo autorizado en la Res 82/2016)
B25: 1287 - E/2016 | C25: 0.09 | D25: A partir del 1° de octubre de 2016 (acumulativo con lo autorizado en la Res 572/2016)
A26: 2017 | B26: 2371 - E/2016 | C26: 0.06 | D26: A partir del 1° de febrero de 2017 (acumulativo con lo autorizado en la Res 1287- E/2016) | E26: 0.313
B27: 613-E/2017 | C27: 0.06 | D27: A partir del 1° de julio de 2017 (6%) y a partir de 1° de agosto de 2017 (5%), acumulativo con lo autorizado en la Res 2371- E/2016.
C28: 0.05
B29: 1050-E/2017 | C29: 0.05 | D29: A partir del 1° de septiembre de 2017 (5%), acumulativo con lo autorizado en la Res 613- E/2017.
B30: 1975-E/2017 | C30: 0.06 | D30: A partir del 1° de diciembre de 2017 (6%), acumulativo con lo autorizado en la Res 1050- E/2017.
A31: 2018 | B31: 2479-E/2017 | C31: 0.04 | D31: A partir del 1° de febrero de 2018 (4%), acumulativo con lo autorizado en la Res 1975-E/2017. | E31: 0.408
B32: 798/2018 | C32: 0.075 | D32: A partir del 1° de junio de 2018 (7,5%), acumulativo con lo autorizado en la Res 2479-E/2017
B33: 1239/2018 | C33: 0.075 | D33: A partir del 1° de agosto de 2018 (7,5%), acumulativo con lo autorizado en la Res 798/2018
B34: 1780/2018 | C34: 0.08 | D34: A partir del 1° de octubre de 2018 (8%), acumulativo con lo autorizado en la Res 1239/2018
B35: 262/2018 | C35: 0.085 | D35: A partir del 1° de diciembre de 2018 (8,5%), acumulativo con lo autorizado en la Res 1780/2018
A36: 2019 | B36: 933/2018 | C36: 0.05 | D36: A partir del 1° de febrero de 2019 (5%), acumulativo con lo autorizado en la Res 262/2018 | E36: 0.607
B37: 592/2019 | C37: 0.075 | D37: A partir del 1° de mayo de 2019 (7,5%), acumulativo con lo autorizado en la Res 933/2019
B38: 872/2019 | C38: 0.055 | D38: Hasta DIECISIETE CON CINCUENTA POR CIENTO (17,50%), desdoblando el porcentaje citado en tres tramos no acumulativos, resultando un aumento de CINCO CON CINCUENTA POR CIENTO (5,50%) a partir del 1º de julio de 2019, de SEIS POR CIENTO (6,00%) a partir del 1º de agosto de 2019 y de SEIS POR CIENTO (6,00%) a partir del 1º de septiembre de 2019, acumulativo con lo autorizado en la Res 592/2019
C39: 0.06
C40: 0.06
B41: 1701/2019 | C41: 0.04 | D41: Aumento general, complementario y acumulativo de aquel que fuera aprobado mediante la Res 872/2019, de hasta CUATRO POR CIENTO (4%) a partir del 1º de octubre de 2019 y de hasta CUATRO POR CIENTO (4%) adicional y acumulativo a partir del 1º de noviembre de 2019
C42: 0.04
B43: 2824/2019 | C43: 0.12 | D43: Aumento general, complementario y acumulativo de aquel que fuera aprobado mediante la Resolución 1701/2019, de hasta DOCE POR CIENTO (12%) a partir del 1º del diciembre de 2019
A44: 2020 | B44: 1787/2020 | C44: 0.1 | D44: Aumento general, complementario y acumulativo de aquel que fuera aprobado mediante la Resolución 2824/2019, de hasta DIEZ (10%) a partir del 1º de diciembre de 2020 | E44: 0.1
A45: 2021 | B45: 531/2021 | C45: 0.035 | D45: Aumento general, complementario y acumulativo de aquel que fue aprobado para diciembre de 2020 mediante la Resolución Nº 1787/20, de hasta un TRES Y MEDIO POR CIENTO (3,5%) a partir del 1º de marzo de 2021. | E45: 0.477
B46: 987/2021 | C46: 0.045 | D46: Autorizase a todas las Entidades de Medicina Prepaga inscriptas en el Registro Nacional de Entidades de Medicina Prepaga (RNEMP) un aumento general y complementario de aquel que ha sido aprobado para el mes de marzo de 2021 mediante la Resolución Nº 531/21-MS, de hasta un CUATRO Y MEDIO POR CIENTO (4,5%) a partir del 1º de abril de 2021, y de hasta un CINCO Y MEDIO POR CIENTO (5,5%) adicional a partir del 1º de mayo de 2021
C47: 0.055
B48: 2125/2021 | C48: 0.09 | D48: Autorizase a todas las Entidades de Medicina Prepaga inscriptas en el Registro Nacional de Entidades de Medicina Prepaga (RNEMP) aumentos generales, complementarios y acumulativos de aquel que ha sido aprobado para el mes de mayo de 2021, mediante la Resolución Nº 987/21-MS, de hasta un NUEVE POR CIENTO (9%) a partir del 1º de agosto de 2021, NUEVE POR CIENTO (9%) a partir del 1º de septiembre de 2021, NUEVE POR CIENTO (9%) a partir del 1º de octubre de 2021 y NUEVE POR CIENTO (9%) a partir del 1º de enero de 2022.
C49: 0.09
C50: 0.09
A51: 2022 | B51: 2125/2021 | C51: 0.09 | D51: Autorizase a todas las Entidades de Medicina Prepaga inscriptas en el Registro Nacional de Entidades de Medicina Prepaga (RNEMP) aumentos generales, complementarios y acumulativos de aquel que ha sido aprobado para el mes de mayo de 2021, mediante la Resolución Nº 987/21-MS, de hasta un NUEVE POR CIENTO (9%) a partir del 1º de agosto de 2021, NUEVE POR CIENTO (9%) a partir del 1º de septiembre de 2021, NUEVE POR CIENTO (9%) a partir del 1º de octubre de 2021 y NUEVE POR CIENTO (9%) a partir del 1º de enero de 2022. | E51: 1.009
B52: 459/2022 | C52: 0.06 | D52: Autorizase a todas las entidades de medicina prepaga inscriptas en el registro nacional de entidades de medicina prepaga (rnemp) aumentos generales, complementarios y acumulativos de aquel que ha sido aprobado para el mes de enero de 2022 mediante la resolucion nº 2125/21 del ministerio de salud, de hasta un seis por ciento (6%) a partir del 1º de marzo de 2022 y de hasta un seis por ciento (6%) a partir del 1º de abril de 2022.
C53: 0.06
B54: 867/2022 | C54: 0.08 | D54: Autorizase a todas las entidades de medicina prepaga inscriptas en el registro nacional de entidades de medicina prepaga (rnemp) aumentos generales, complementarios y acumulativos de aquel que ha sido aprobado para el mes de abril de 2022, mediante la resolucion del ministerio de salud nº 459/2022, de hasta un ocho por ciento (8%) a partir del 1º de mayo de 2022, de hasta un diez por ciento (10%) adicional y acumulativo a partir del 1º de junio de 2022 y de hasta un cuatro por ciento (4%) adicional y acumulativo a partir del 1º de julio de 2022.
C55: 0.1
C56: 0.04
B57: Indice de costos de salud | C57: 0.1134 | D57: A implementarse en Agosto 2022
C58: 0.1153 | D58: A implementarse en Octubre 2022
C59: 0.069 | D59: A implementarse en Diciembre 2022. El mismo se desdoblo entre diciembre y Enero. | J59: 2011 | K59: 0.28
A60: 2023 | B60: INDICE DE COSTOS DE SAUD | C60: 0.069 | D60: 2023-01-01 | F60: 1.357599196 | J60: 2012 | K60: 0.1640625
C61: 0.0821 | D61: 2023-02-01 | J61: 2013 | K61: 0.1812080537
C62: 0.0766 | D62: 2023-03-01 | J62: 2014 | K62: 0.3920454545
C63: 0.0236 | D63: 2023-04-01 | J63: 2015 | K63: 0.2857142857
C64: 0.0476 | D64: 2023-05-01 | J64: 2016 | K64: 0.4253968254
C65: 0.0549 | D65: 2023-06-01 | J65: 2017 | K65: 0.3140311804
C66: 0.0849 | D66: 2023-07-01 | J66: 2018 | K66: 0.4084745763
C67: 0.0872 | D67: 2023-08-01 | J67: 2019 | K67: 0.6064981949
C68: 0.0718 | D68: 2023-09-01 | J68: 2020 | K68: 0.09962546816
C69: 0.0697 | D69: 2023-10-01 | J69: 2021 | K69: 0.48
C70: 0.1098 | D70: 2023-11-01 | J70: 2022 | K70: 1.009
C71: 0.1151 | D71: 2023-12-01 | J71: 2023 | K71: =+F60 -> 1.357599196
A72: 2024 | B72: Desregulación | C72: =+I86/100 -> 0.3919636364 | D72: 2024-01-01 | J72: 2024* A febrero | K72: =+J102/1-1 -> 0.782978876
C73: =+J86/100 -> 0.2809090909 | D73: 2024-02-01
C74: =+K86/100 -> 0.2061636364 | D74: 2024-03-01 | I74: 2024-01-01 | J74: 2024-02-01 | K74: 2024-03-01
D75: 2024-04-01 | H75: Avalian | I75: 39 | J75: 24 | K75: 17.5
D76: 2024-05-01 | H76: Galeno | I76: 40.5 | J76: 28.5 | K76: 22.9
D77: 2024-06-01 | H77: Hospital Slemán | I77: 39.5 | J77: 27.5 | K77: 20.8
D78: 2024-07-01 | H78: Hospital Británico | I78: 38 | J78: 29.5 | K78: 20
D79: 2024-08-01 | H79: Hospital Italiano | I79: 40 | J79: 29.5 | K79: 18.43
D80: 2024-09-01 | H80: Medicus | I80: 40 | J80: 26 | K80: 21.85
D81: 2024-10-01 | H81: Medifé | I81: 39 | J81: 23.5 | K81: 23
D82: 2024-11-01 | H82: Omint | I82: 40.8 | J82: 29.4 | K82: 22
D83: 2024-12-01 | H83: Osde | I83: 38.6 | J83: 28 | K83: 19
H84: Sancor | I84: =6.26+29.5 -> 35.76 | J84: 35.6 | K84: 20
H85: SMG | I85: 40 | J85: 27.5 | K85: 21.3
H86: Promedio | I86: =+AVERAGE(I75:I85) -> 39.19636364 | J86: =+AVERAGE(J75:J85) -> 28.09090909 | K86: =+AVERAGE(K75:K85) -> 20.61636364
H87: Aranceles (90%) | I87: =+I86*0.9 -> 35.27672727 | J87: =+J86*0.9 -> 25.28181818 | K87: =+K86*0.9 -> 18.55472727
I89: Acumulado
I90: 2024-01-01 | J90: 2024-02-01 | K90: 2024-03-01 | L90: Total año 2024
H91: Avalian | I91: =1*(1+I75/100) -> 1.39 | J91: =+I91*(1+J75/100) -> 1.7236 | K91: 2.02523 | L91: =+K91/1-1 -> 1.02523
H92: Galeno | I92: 1.405 | J92: 1.805425 | K92: 2.218867325 | L92: 1.218867325
H93: Hospital Slemán | I93: 1.395 | J93: 1.778625 | K93: 2.148579 | L93: 1.148579
H94: Hospital Británico | I94: 1.38 | J94: 1.7871 | K94: 2.14452 | L94: 1.14452
H95: Hospital Italiano | I95: 1.4 | J95: 1.813 | K95: 2.1471359 | L95: 1.1471359
H96: Medicus | I96: 1.4 | J96: 1.764 | K96: 2.149434 | L96: 1.149434
H97: Medifé | I97: 1.39 | J97: 1.71665 | K97: 2.1114795 | L97: 1.1114795
H98: Omint | I98: 1.408 | J98: 1.821952 | K98: 2.22278144 | L98: 1.22278144
H99: Osde | I99: 1.386 | J99: 1.77408 | K99: 2.1111552 | L99: 1.1111552
H100: Sancor | I100: 1.3576 | J100: 1.8409056 | K100: 2.20908672 | L100: 1.20908672
H101: SMG | I101: 1.4 | J101: 1.785 | K101: 2.165205 | L101: 1.165205
H102: Promedio | I102: =1*(1+I86/100) -> 1.391963636 | J102: =+I102*(1+J86/100) -> 1.782978876 | K102: =1*(1+K86/100) -> 1.206163636

Sheet Aranceles datos (hidden)
B2: Aumentos | C2: %
A3: 2020-12-01 | C3: =+B3 -> 0 | D3: 100
A4: 2021-01-01 | C4: =+B4 -> 0 | D4: =+D3*(1+C4) -> 100
A5: 2021-02-01 | C5: 0 | D5: =+D4*(1+C5) -> 100 | F5: 2011 | G5: 0.32
A6: 2021-03-01 | B6: 0.035 | C6: 0.035 | D6: =+D5*(1+C6) -> 103.5 | F6: 2012 | G6: 0.1590909091
A7: 2021-04-01 | B7: 0.045 | C7: 0.045 | D7: =+D6*(1+C7) -> 108.1575 | F7: 2013 | G7: 0.1699346405
A8: 2021-05-01 | B8: 0.055 | C8: 0.055 | D8: =+D7+D6*C8 -> 113.85 | E8: la base del aumento es otra | F8: 2014 | G8: 0.2234636872
A9: 2021-06-01 | C9: 0 | D9: =+D8*(1+C9) -> 113.85 | F9: 2015 | G9: 0.2054794521
A10: 2021-07-01 | C10: 0 | D10: 113.85 | F10: 2016 | G10: 0.2272727273
A11: 2021-08-01 | B11: 0.09 | C11: 0.09 | D11: 124.0965 | F11: 2017 | G11: 0.1450617284
A12: 2021-09-01 | B12: 0.09 | C12: 0.09 | D12: 135.265185 | F12: 2018 | G12: 0.1940700809
A13: 2021-10-01 | B13: 0.09 | C13: 0.09 | D13: 147.4390517 | F13: 2019 | G13: 0.3002257336
A14: 2021-11-01 | C14: 0 | D14: 147.4390517 | F14: 2020 | G14: 0.2986111111
A15: 2021-12-01 | C15: 0 | D15: 147.4390517 | F15: 2021 | G15: =+D15/D3-1 -> 0.4743905165
A16: 2022-01-01 | B16: 0.09 | C16: 0.09 | D16: 160.7085663 | F16: 2022 | G16: =+D27/D15-1 -> 0.8609252204
A17: 2022-02-01 | C17: 0 | D17: 160.7085663 | F17: 2023 | G17: =+D39/D27-1 -> 1.133844233
A18: 2022-03-01 | B18: 0.03 | C18: 0.03 | D18: 165.5298233
A19: 2022-04-01 | B19: 0.06 | C19: 0.06 | D19: 175.4616127
A20: 2022-05-01 | B20: 0.072 | C20: 0.072 | D20: 188.0948488
A21: 2022-06-01 | B21: 0.09 | C21: 0.09 | D21: 205.0233852
A22: 2022-07-01 | B22: 0.036 | C22: 0.036 | D22: 212.4042271
A23: 2022-08-01 | B23: 0.10188 | C23: 0.10188 | D23: 234.0439697
A24: 2022-09-01 | B24: 0 | C24: 0 | D24: 234.0439697
A25: 2022-10-01 | B25: 0.10377 | C25: 0.10377 | D25: 258.3307124
A26: 2022-11-01 | B26: 0 | C26: 0 | D26: 258.3307124
A27: 2022-12-01 | B27: =6.9*0.9/100 -> 0.0621 | C27: 0.0621 | D27: 274.3730497
A28: 2023-01-01 | B28: =6.9*0.9/100 -> 0.0621 | C28: 0.0621 | D28: 291.4116161
A29: 2023-02-01 | B29: =8.21*0.9/100 -> 0.07389 | C29: 0.07389 | D29: 312.9440204
A30: 2023-03-01 | B30: =7.66*0.9/100 -> 0.06894 | C30: 0.06894 | D30: 334.5183812
A31: 2023-04-01 | B31: =2.36*0.9/100 -> 0.02124 | C31: 0.02124 | D31: 341.6235516
A32: 2023-05-01 | B32: =4.76*0.9/100 -> 0.04284 | C32: 0.04284 | D32: 356.2587045
A33: 2023-06-01 | B33: =5.49*0.9/100 -> 0.04941 | C33: 0.04941 | D33: 373.8614471
A34: 2023-07-01 | B34: =8.49*0.9/100 -> 0.07641 | C34: 0.07641 | D34: 402.4282003
A35: 2023-08-01 | B35: =8.72*0.9/100 -> 0.07848 | C35: 0.07848 | D35: 434.0107654
A36: 2023-09-01 | B36: =7.18*0.9/100 -> 0.06462 | C36: 0.06462 | D36: 462.0565411
A37: 2023-10-01 | B37: =6.97*0.9/100 -> 0.06273 | C37: 0.0449 | D37: 482.8028798 | E37: Fue un acuerdo Ad hoc por congelamiento de cuotas
A38: 2023-11-01 | B38: =10.98*0.9/100 -> 0.09882 | C38: 0.09882 | D38: 530.5134604
A39: 2023-12-01 | B39: =11.51*0.9/100 -> 0.10359 | C39: 0.10359 | D39: 585.4693497 | G39: 1
A40: 2024-01-01 | B40: =40*0.9/100 -> 0.36 | C40: 0.36 | D40: 796.2383156 | G40: =+C40 -> 0.36
A41: 2024-02-01 | B41: =+'Aumentos prepagas'!J87*0.9/100 -> 0.2275363636 | C41: 0.2275363636 | D41: 977.4114866 | E41: =+D41/D39-1 -> 0.6694494545 | G41: =+C41 -> 0.2275363636
G43: =+G39*(1+G40) -> 1.36
G44: =+G43*(1+G41) -> 1.669449455

Sheet Análisis variables (hidden)
B3: aranceles | D3: cuota EMPP | F3: Inflacion | H3: IPC Salud | J3: Salarios | L3: Dólar | P3: laboratorio | R3: imágenes | T3: cap PAMI | V3: cap OSN
A4: 2010 | B4: 100 | D4: 100 | F4: 100 | P4: 100 | R4: 100 | T4: 100 | V4: 100
A5: 2011 | B5: 132 | C5: 0.32 | D5: 128 | E5: 0.28 | F5: 118 | G5: 0.18 | P5: 137 | Q5: 0.37 | R5: 133 | S5: 0.33 | T5: 133 | U5: 0.33 | V5: 126 | W5: 0.26
A6: 2012 | B6: 153 | C6: 0.1590909091 | D6: 149 | E6: 0.1640625 | F6: 144 | G6: 0.2203389831 | P6: 163 | Q6: 0.1897810219 | R6: 163 | S6: 0.2255639098 | T6: 166 | U6: 0.2481203008 | V6: 168 | W6: 0.3333333333
A7: 2013 | B7: 179 | C7: 0.1699346405 | D7: 176 | E7: 0.1812080537 | F7: 182 | G7: 0.2638888889 | P7: 263 | Q7: 0.6134969325 | R7: 202 | S7: 0.2392638037 | T7: 202 | U7: 0.2168674699 | V7: 211 | W7: 0.255952381
A8: 2014 | B8: 219 | C8: 0.2234636872 | D8: 245 | E8: 0.3920454545 | F8: 252 | G8: 0.3846153846 | P8: 347 | Q8: 0.319391635 | R8: 255 | S8: 0.2623762376 | T8: 276 | U8: 0.3663366337 | V8: 293 | W8: 0.3886255924
A9: 2015 | B9: 264 | C9: 0.2054794521 | D9: 315 | E9: 0.2857142857 | F9: 319 | G9: 0.2658730159 | P9: 451 | Q9: 0.2997118156 | R9: 351 | S9: 0.3764705882 | T9: 341 | U9: 0.2355072464 | V9: 395 | W9: 0.3481228669
A10: 2016 | B10: 324 | C10: 0.2272727273 | D10: 449 | E10: 0.4253968254 | F10: 450 | G10: 0.4106583072 | H10: 100 | P10: 617 | Q10: 0.3680709534 | R10: 440 | S10: 0.2535612536 | T10: 478 | U10: 0.4017595308 | V10: 524 | W10: 0.3265822785
A11: 2017 | B11: 371 | C11: 0.1450617284 | D11: 590 | E11: 0.3140311804 | F11: 568 | G11: 0.2622222222 | H11: =+H10*(1+I11) -> 127.8 | I11: =+'IPC Salud'!B8 -> 0.278 | M11: =+'Dolar oficial'!B9 -> 0.1190980257 | P11: 735 | Q11: 0.1912479741 | R11: 526 | S11: 0.1954545455 | T11: 568 | U11: 0.1882845188 | V11: 680 | W11: 0.2977099237
A12: 2018 | B12: 443 | C12: 0.1940700809 | D12: 831 | E12: 0.4084745763 | F12: 838 | G12: 0.4753521127 | H12: 191.9 | I12: =+'IPC Salud'!B9 -> 0.5015649452 | J12: 100 | L12: 100 | M12: =+'Dolar oficial'!B10 -> 1.15847876 | P12: 814 | Q12: 0.1074829932 | R12: 899 | S12: 0.7091254753 | T12: 689 | U12: 0.213028169 | V12: 860 | W12: 0.2647058824
A13: 2019 | B13: 576 | C13: 0.3002257336 | D13: 1335 | E13: 0.6064981949 | F13: 1289 | G13: 0.5381861575 | H13: 330.3 | I13: =+'IPC Salud'!B10 -> 0.721208963 | J13: =+J12*(1+K13) -> 146.8988086 | K13: =+Salarios!B10 -> 0.4689880861 | L13: =+L12*(1+M13) -> 161.9671965 | M13: =+'Dolar oficial'!B11 -> 0.6196719652 | P13: 1123 | Q13: 0.3796068796 | R13: 1245 | S13: 0.3848720801 | T13: 959 | U13: 0.3918722787 | V13: 1198 | W13: 0.3930232558
A14: 2020 | B14: 748 | C14: 0.2986111111 | D14: 1468 | E14: 0.09962546816 | F14: 1755 | G14: 0.3615205586 | H14: 425 | I14: =+'IPC Salud'!B11 -> 0.2867090524 | J14: =+J13*(1+K14) -> 173.8000011 | K14: =+Salarios!B11 -> 0.1831273702 | L14: =+L13*(1+M14) -> 226.5490534 | M14: =+'Dolar oficial'!B12 -> 0.3987341772 | P14: 1550 | Q14: 0.3802315227 | R14: 1718 | S14: 0.3799196787 | T14: 1385 | U14: 0.4442127216 | V14: 1616 | W14: 0.3489148581
A15: 2021 | B15: 1107.04 | C15: 0.48 | D15: =+D14*(1+E15) -> 2172.64 | E15: 0.48 | F15: 2648.295 | G15: 0.509 | H15: 645.1 | I15: =+'IPC Salud'!B12 -> 0.5178823529 | J15: =+J14*(1+K15) -> 331.1579366 | K15: =+Salarios!B12 -> 0.905396631 | L15: =+L14*(1+M15) -> 276.1187608 | M15: =+'Dolar oficial'!B13 -> 0.2188034188 | P15: 2387 | Q15: 0.54 | R15: 2645.72 | S15: 0.54 | T15: 1980.55 | U15: 0.43 | V15: 2278.56 | W15: 0.41
A16: 2022 | B16: 2060.118656 | C16: 0.8609252204 | D16: 4364.83376 | E16: 1.009 | F16: 5158.698108 | G16: 0.9479318234 | H16: 1231.5 | I16: =+'IPC Salud'!B13 -> 0.9090063556 | J16: =+J15*(1+K16) -> 655.6938682 | K16: =+Salarios!B13 -> 0.9800034839 | L16: =+L15*(1+M16) -> 462.876506 | M16: =+'Dolar oficial'!B14 -> 0.6763674614 | P16: 4649.876 | Q16: 0.948 | R16: 5153.86256 | S16: 0.948 | V16: 3934.198489 | W16: 0.7266161473
A17: 2023 | B17: =+B16*(1+C17) -> 4395.972313 | C17: =+Aranceles!B17 -> 1.133844233 | D17: =+D16*(1+E17) -> 10290.52856 | E17: =+'Cuotas EMPP'!B17 -> 1.357599196 | F17: =+F16*(1+G17) -> 16064.43871 | G17: =+IPC!B14 -> 2.114049004 | H17: 4035.9697 | I17: =+'IPC Salud'!B14 -> 2.277279497 | J17: =+J16*(1+K17) -> 1695.411623 | K17: =+Salarios!B14 -> 1.58567558 | L17: =+L16*(1+M17) -> 1712.467615 | M17: =+'Dolar oficial'!B15 -> 2.699620941
A21: * Febrero 2024
A22: Cambio de base
B23: aran acum | C23: aran v.a | D23: EMPP acum | E23: EMPP v.a | F23: IPC acum | G23: IPC v.a | H23: IPC Salud acum | I23: IPC Salud v.a | J23: Salarios acum | K23: Salarios v.a | L23: Dólar acum | M23: Dólar v.a
A24: 2018 | B24: 100 | D24: 100 | F24: 100 | H24: 100 | J24: 100 | L24: 100
A25: 2019 | B25: =+B13/$B$12*100 -> 130.0225734 | C25: =+B25/B24-1 -> 0.3002257336 | D25: =+D13/$D$12*100 -> 160.6498195 | E25: =+D25/D24-1 -> 0.6064981949 | F25: =+F13/$F$12*100 -> 153.8186158 | G25: =+F25/F24-1 -> 0.5381861575 | H25: =+H13/$H$12*100 -> 172.1208963 | I25: =+H25/H24-1 -> 0.721208963 | J25: =+J13 -> 146.8988086 | K25: =+J25/J24-1 -> 0.4689880861 | L25: =+L13 -> 161.9671965 | M25: =+L25/L24-1 -> 0.6196719652
A26: 2020 | B26: =+B14/$B$12*100 -> 168.8487585 | C26: =+B26/B25-1 -> 0.2986111111 | D26: =+D14/$D$12*100 -> 176.654633 | E26: =+D26/D25-1 -> 0.09962546816 | F26: =+F14/$F$12*100 -> 209.4272076 | G26: =+F26/F25-1 -> 0.3615205586 | H26: =+H14/$H$12*100 -> 221.4695154 | I26: =+H26/H25-1 -> 0.2867090524 | J26: =+J14 -> 173.8000011 | K26: =+J26/J25-1 -> 0.1831273702 | L26: =+L14 -> 226.5490534 | M26: =+L26/L25-1 -> 0.3987341772
A27: 2021 | B27: =+B15/$B$12*100 -> 249.8961625 | C27: =+B27/B26-1 -> 0.48 | D27: =+D15/$D$12*100 -> 261.4488568 | E27: =+D27/D26-1 -> 0.48 | F27: =+F15/$F$12*100 -> 316.0256563 | G27: =+F27/F26-1 -> 0.509 | H27: =+H15/$H$12*100 -> 336.1646691 | I27: =+H27/H26-1 -> 0.5178823529 | J27: =+J15 -> 331.1579366 | K27: =+J27/J26-1 -> 0.905396631 | L27: =+L15 -> 276.1187608 | M27: =+L27/L26-1 -> 0.2188034188
A28: 2022 | B28: =+B16/$B$12*100 -> 465.0380713 | C28: =+B28/B27-1 -> 0.8609252204 | D28: =+D16/$D$12*100 -> 525.2507533 | E28: =+D28/D27-1 -> 1.009 | F28: =+F16/$F$12*100 -> 615.596433 | G28: =+F28/F27-1 -> 0.9479318234 | H28: =+H16/$H$12*100 -> 641.7404898 | I28: =+H28/H27-1 -> 0.9090063556 | J28: =+J16 -> 655.6938682 | K28: =+J28/J27-1 -> 0.9800034839 | L28: =+L16 -> 462.876506 | M28: =+L28/L27-1 -> 0.6763674614
A29: 2023 | B29: =+B17/$B$12*100 -> 992.3188066 | C29: =+B29/B28-1 -> 1.133844233 | D29: =+D17/$D$12*100 -> 1238.330754 | E29: =+D29/D28-1 -> 1.357599196 | F29: =+F17/$F$12*100 -> 1916.997459 | G29: =+F29/F28-1 -> 2.114049004 | H29: =+H17/$H$12*100 -> 2103.162949 | I29: =+H29/H28-1 -> 2.277279497 | J29: =+J17 -> 1695.411623 | K29: =+J29/J28-1 -> 1.58567558 | L29: =+L17 -> 1712.467615 | M29: =+L29/L28-1 -> 2.699620941
A30: 2024* | B30: =+B29*(1+C30) -> 1656.62609 | C30: =+'Aranceles datos'!D41/'Aranceles datos'!D39-1 -> 0.6694494545 | D30: =+D29*(1+E30) -> 2207.917575 | E30: =+'Aumentos prepagas'!K72 -> 0.782978876 | F30: =+F29*(1+G30) -> 2618.313009 | G30: =+'IPC Datos'!F91 -> 0.3658406261 | H30: =+H29*(1+I30) -> 2877.240855 | I30: =+'IPC Datos'!G91 -> 0.3680541754 | J30: =+J29*(1+K30) -> 2204.035097 | K30: =+'Salarios datos'!J39/'Salarios datos'!J37-1 -> 0.2999999926 | L30: =+L29*(1+M30) -> 2204.207809 | M30: =+'tc prom mensual'!B99/'tc prom mensual'!B96-1 -> 0.2871529888

Sheet Costos DxI (hidden)
J3: Tomografia | K3: Resonancia | L3: Radiologia | M3: Ecografia | N3: Mamografía | O3: Promedio
B4: 2022-12-01 | C4: 2023-08-01 | D4: 2023-11-01 | E4: 2023-12-01 | F4: 2024-01-01 | G4: 2024-02-01 | I4: 2020-07-01 | J4: 5317.4 | K4: 8014.9 | L4: 1388.8 | M4: 1436.4 | N4: 2457 | O4: =+AVERAGE(J4:N4) -> 3722.9
A5: Tomografia | B5: 15640 | C5: 26303 | D5: 31634.6 | E5: =+J45 -> 48166 | F5: =+J46 -> 57708.8 | G5: =+J47 -> 63216.81 | H5: =+G5/F5-1 -> 0.09544488882 | I5: 2020-08-01 | J5: 5410.9 | K5: 8175.8 | L5: 1402 | M5: 1453.1 | N5: 2490.5 | O5: =+AVERAGE(J5:N5) -> 3786.46
A6: Resonancia | B6: 22316 | C6: 38594 | D6: 45202.8 | E6: =+K45 -> 72467.6 | F6: =+K46 -> 88550.9 | G6: =+K47 -> 94720 | H6: =+G6/F6-1 -> 0.06966727611 | I6: 2020-09-01 | J6: 5499 | K6: 8333.1 | L6: 1410.5 | M6: 1465.4 | N6: 2521 | O6: 3845.8 | R6: 2021 | S6: 2022 | T6: 2023 | U6: 2024
A7: Radiologia | B7: 4762 | C7: 7281 | D7: 9391.8 | E7: =+L45 -> 12339.6 | F7: =+L46 -> 14027.9 | G7: =+L47 -> 16709.6 | H7: 0.1911690274 | I7: 2020-10-01 | J7: 5527.9 | K7: 8437.6 | L7: 1375.2 | M7: 1436.9 | N7: 2521 | O7: 3859.72 | Q7: Var anual promedio | R7: =+O$21/O$9-1 -> 0.4230032663 | S7: =+O$33/O$21-1 -> 0.8797115756 | T7: =+O$45/O$33-1 -> 2.045261762 | U7: =+O47/O45-1 -> 0.3200361252
A8: Ecografia | B8: 5666.9 | C8: 8803.3 | D8: 9134.9 | E8: =+M45 -> 12523.6 | F8: =+M46 -> 14593.8 | G8: =+M47 -> 17125.8 | H8: 0.1734983349 | I8: 2020-11-01 | J8: 5746.3 | K8: 8756.4 | L8: 1447.3 | M8: 1511 | N8: 2610.1 | O8: 4014.22 | Q8: Tomografía | R8: =+J$21/J$9-1 -> 0.4171742708 | S8: =+J$33/J$21-1 -> 0.8725156841 | T8: =+J$45/J$33-1 -> 2.079667519 | U8: =+J47/J45-1 -> 0.312477889
A9: Mamografía | B9: 7629.3 | C9: 12448.2 | D9: 15404.2 | E9: =+N45 -> 22087 | F9: =+N46 -> 25696.6 | G9: =+N47 -> 29444.46 | H9: 0.1458504238 | I9: 2020-12-01 | J9: 5893.7 | K9: 9007.3 | L9: 1470.2 | M9: 1538.9 | N9: 2663.5 | O9: 4114.72 | Q9: Resonancia | R9: =+K$21/K$9-1 -> 0.3568994038 | S9: =+K$33/K$21-1 -> 0.8258877434 | T9: =+K$45/K$33-1 -> 2.247338233 | U9: =+K47/K45-1 -> 0.3070668823
I10: 2021-01-01 | J10: 6119.5 | K10: 9341.5 | L10: 1532.2 | M10: 1603.7 | N10: 2778.9 | O10: 4275.16 | Q10: Radiología | R10: =+L$21/L$9-1 -> 0.6008706298 | S10: =+L$33/L$21-1 -> 1.023283481 | T10: =+L$45/L$33-1 -> 1.591264175 | U10: =+L47/L45-1 -> 0.3541443807
B11: =+AVERAGE(B5:B9) -> 11202.84 | C11: =+AVERAGE(C5:C9) -> 18685.9 | D11: 22153.66 | E11: =+AVERAGE(E5:E9) -> 33516.76 | F11: =+AVERAGE(F5:F9) -> 40115.6 | G11: =+AVERAGE(G5:G9) -> 44243.334 | I11: 2021-02-01 | J11: 6380.3 | K11: 9719.7 | L11: 1598.5 | M11: 1662.9 | N11: 2897.5 | O11: 4451.78 | Q11: Ecografía | R11: =+M$21/M$9-1 -> 0.5301838976 | S11: =+M$33/M$21-1 -> 0.9890011891 | T11: =+M$45/M$33-1 -> 1.67386895 | U11: =+M47/M45-1 -> 0.3674821936
I12: 2021-03-01 | J12: 6589 | K12: 10012.1 | L12: 1658.9 | M12: 1718.9 | N12: 3005.1 | O12: 4596.8 | Q12: Mamografía | R12: =+N$21/N$9-1 -> 0.4993429698 | S12: =+N$33/N$21-1 -> 0.9104294479 | T12: =+N$45/N$33-1 -> 1.895023134 | U12: =+N47/N45-1 -> 0.3331126907
E13: =+E11/D11-1 -> 0.5129220183 | F13: =+F11/E11-1 -> 0.1968817988 | G13: =+G11/F11-1 -> 0.1028959806 | I13: 2021-04-01 | J13: 6913.6 | K13: 10411.5 | L13: 1791.2 | M13: 1841.3 | N13: 3198.8 | O13: 4831.28
I14: 2021-05-01 | J14: 6985.8 | K14: 10527.8 | L14: 1810.9 | M14: 1867 | N14: 3234.7 | O14: 4885.24
I15: 2021-06-01 | J15: 7091.8 | K15: 10715.3 | L15: 1821.8 | M15: 1882.5 | N15: 3272.1 | O15: 4956.7
I16: 2021-07-01 | J16: 7490 | K16: 11149.5 | L16: 2013.3 | M16: 2048.6 | N16: 3516.1 | O16: 5243.5
I17: 2021-08-01 | J17: 7508.7 | K17: 11180.8 | L17: 2016 | M17: 2051.9 | N17: 3523.4 | O17: 5256.16
I18: 2021-09-01 | J18: 7933.8 | K18: 11663.5 | L18: 2209.7 | M18: 2221.6 | N18: 3776.4 | O18: 5561
I19: 2021-10-01 | J19: 7979.9 | K19: 11744.3 | L19: 2214.8 | M19: 2228.6 | N19: 3793 | O19: 5592.12
I20: 2021-11-01 | J20: 8279.9 | K20: 12094.8 | L20: 2345.8 | M20: 2344 | N20: 3967.7 | O20: 5806.44
I21: 2021-12-01 | J21: 8352.4 | K21: 12222 | L21: 2353.6 | M21: 2354.8 | N21: 3993.5 | O21: 5855.26
I22: 2022-01-01 | J22: 8435.1 | K22: 12400.5 | L22: 2364 | M22: 2369.5 | N22: 4029 | O22: 5919.62
I23: 2022-02-01 | J23: 8754.4 | K23: 12795.4 | L23: 2468.8 | M23: 2463 | N23: 4184.8 | O23: 6133.28
I24: 2022-03-01 | J24: 9081.7 | K24: 13244.7 | L24: 2588.9 | M24: 2587.4 | N24: 4364.2 | O24: 6373.38
I25: 2022-04-01 | J25: 9263.1 | K25: 13566.2 | L25: 2607 | M25: 2613.2 | N25: 4427.7 | O25: 6495.44
I26: 2022-05-01 | J26: 9893.5 | K26: 14377.8 | L26: 2840.8 | M26: 2825.8 | N26: 4765.8 | O26: 6940.74
I27: 2022-06-01 | J27: 10558 | K27: 15238.7 | L27: 3091.4 | M27: 3060.7 | N27: 5127.6 | O27: 7415.28
I28: 2022-07-01 | J28: 10830.8 | K28: 15723 | L28: 3119.1 | M28: 3100 | N28: 5223.3 | O28: 7599.24
I29: 2022-08-01 | J29: 11856.6 | K29: 17016 | L29: 3515.5 | M29: 3458.1 | N29: 5784.7 | O29: 8326.18
I30: 2022-09-01 | J30: 12293.1 | K30: 17772.3 | L30: 3580.7 | M30: 3547.5 | N30: 5955.8 | O30: 8629.88
I31: 2022-10-01 | J31: 12949.5 | K31: 18741.7 | L31: 3755.3 | M31: 3719.7 | N31: 6260.5 | O31: 9085.34
I32: 2022-11-01 | J32: 14083.4 | K32: 20277.8 | L32: 4155.1 | M32: 4109.5 | N32: 6861.1 | O32: 9897.38
I33: 2022-12-01 | J33: 15640 | K33: 22316 | L33: 4762 | M33: 4683.7 | N33: 7629.3 | O33: 11006.2
I34: 2023-01-01 | J34: 15625.9 | K34: 22573.3 | L34: 4556.7 | M34: 4508 | N34: 7570.9 | O34: 10966.96
I35: 2023-02-01 | J35: 16354.6 | K35: 23673.6 | L35: 4737.4 | M35: 4689.6 | N35: 7899.9 | O35: 11471.02
I36: 2023-03-01 | J36: 17183.2 | K36: 24894.7 | L36: 4959.4 | M36: 4907.8 | N36: 8285.5 | O36: 12046.12
I37: 2023-04-01 | J37: 18544.5 | K37: 26797.2 | L37: 5397.3 | M37: 5335.5 | N37: 8974.5 | O37: 13009.8
I38: 2023-05-01 | J38: 19901.8 | K38: 28716.2 | L38: 5805.8 | M38: 5725.4 | N38: 9637.2 | O38: 13957.28
I39: 2023-06-01 | J39: 21305 | K39: 30770.8 | L39: 6188.9 | M39: 6100.2 | N39: 10295.1 | O39: 14932
I40: 2023-07-01 | J40: 22771.6 | K40: 32938.6 | L40: 6578.6 | M40: 6484.6 | N40: 10975.5 | O40: 15949.78
I41: 2023-08-01 | J41: 26303.6 | K41: 38594.9 | L41: 7281 | M41: 7240.7 | N41: 12448.2 | O41: 18373.68
I42: 2023-09-01 | J42: 28519.3 | K42: 41829.9 | L42: 7893 | M42: 7837.9 | N42: 13491.3 | O42: 19914.28
I43: 2023-10-01 | J43: 29418.3 | K43: 42794.2 | L43: 8446.2 | M43: 8396.9 | N43: 14158.1 | O43: 20642.74
I44: 2023-11-01 | J44: 31634.6 | K44: 45202.8 | L44: 9391.8 | M44: 9134.9 | N44: 15404.2 | O44: 22153.66
I45: 2023-12-01 | J45: 48166 | K45: 72467.6 | L45: 12339.6 | M45: 12523.6 | N45: 22087 | O45: 33516.76
I46: 2024-01-01 | J46: 57708.8 | K46: 88550.9 | L46: 14027.9 | M46: 14593.8 | N46: 25696.6 | O46: 40115.6
I47: 2024-02-01 | J47: 63216.81 | K47: 94720 | L47: 16709.6 | M47: 17125.8 | N47: 29444.46 | O47: 44243.334
